Department Family,Entity,Date,Expense Type,Expense Area,Supplier,Transaction Number,Amount,Description
Ministry of Justice,LAA,10/08/2015,512000-Intangible GBV - Additions,VA617-Business Recovery,SPRING TECHNOLOGY,15028,"5,381.80 ",Business Recovery-Cost
Ministry of Justice,LAA,10/08/2015,512000-Intangible GBV - Additions,VA617-Business Recovery,SPRING TECHNOLOGY,15028,"26,908.98 ",Business Recovery-Cost
Ministry of Justice,LAA,05/08/2015,265000-IT & Telecommunications,VA294-ISD,EVERYTHING EVERYHERE,2001751,"23,542.00 ","50 x 4G MBB 64GB 24 Mth incl. Dongle, MiFI or Router - 75.00 "
Ministry of Justice,LAA,05/08/2015,265000-IT & Telecommunications,VA294-ISD,EVERYTHING EVERYHERE,2001751,"90,325.02 ","50 x 4G MBB 64GB 24 Mth incl. Dongle, MiFI or Router - 75.00 "
Ministry of Justice,LAA,12/08/2015,223000-Other Expenditure,VA395-National Courts Team,ROSSENDALES LTD,2001879,"54,309.00 ",Enforcement costs for CCMT covering April 2015 to March 2016
Ministry of Justice,LAA,12/08/2015,223000-Other Expenditure,VA395-National Courts Team,ROSSENDALES LTD,2001879,"75,491.55 ",Enforcement costs for CCMT covering April 2015 to March 2016
Ministry of Justice,LAA,12/08/2015,223000-Other Expenditure,VA395-National Courts Team,ROSSENDALES LTD,2001879,"88,072.70 ",Collections (Service Delivery) costs for CCMT covering April 2015 to March 2016
Ministry of Justice,LAA,19/08/2015,265000-IT & Telecommunications,"VA393-Operations, Civil",NORTHGATE PUBLIC SERVICES (UK) LTD,2001954,"28,549.25 ","Managed Service per month, Network Connection per month & EDRM Software per month - April 15 to March 16 "
Ministry of Justice,LAA,19/08/2015,512000-Intangible GBV - Additions,VA294-ISD,REDCENTRIC SOLUTIONS LTD,2001968,"24,604.00 ","Redcentric Harrogate Data Centre Build, Departmental Security Level Accred, Installation of Managed Firewalls, T&M - Network/Data Centre Design"
Ministry of Justice,LAA,19/08/2015,512000-Intangible GBV - Additions,VA294-ISD,REDCENTRIC SOLUTIONS LTD,2001968,"123,020.00 ","Redcentric Harrogate Data Centre Build, Departmental Security Level Accred, Installation of Managed Firewalls, T&M - Network/Data Centre Design"
Ministry of Justice,LAA,19/08/2015,224000-Staff travel and other,VA293-Finance Directorate,REDFERN TRAVEL LTD,2001969,-1.08 ,LAA Blanket Travel Costs 01 June 2015 to 30 Aug 2015
Ministry of Justice,LAA,19/08/2015,224000-Staff travel and other,VA293-Finance Directorate,REDFERN TRAVEL LTD,2001969,214.45 ,LAA Blanket Travel Costs 01 June 2015 to 30 Aug 2015
Ministry of Justice,LAA,19/08/2015,224000-Staff travel and other,VA293-Finance Directorate,REDFERN TRAVEL LTD,2001969,"1,072.26 ",LAA Blanket Travel Costs 01 June 2015 to 30 Aug 2015
Ministry of Justice,LAA,19/08/2015,224000-Staff travel and other,VA293-Finance Directorate,REDFERN TRAVEL LTD,2001969,"144,740.00 ",LAA Blanket Travel Costs 01 June 2015 to 30 Aug 2015
Ministry of Justice,LAA,26/08/2015,512000-Intangible GBV - Additions,VA403-IDP - Infrastructure,CAPGEMINI UK PLC,2002016,"9,361.00 ",Digital Service Framework Agreement (DSF) - T&M SOW1
Ministry of Justice,LAA,26/08/2015,512000-Intangible GBV - Additions,VA403-IDP - Infrastructure,CAPGEMINI UK PLC,2002016,"10,894.00 ",Digital Service Framework Agreement (DSF) - T&M SOW1
Ministry of Justice,LAA,26/08/2015,512000-Intangible GBV - Additions,VA403-IDP - Infrastructure,CAPGEMINI UK PLC,2002016,"46,805.00 ",Digital Service Framework Agreement (DSF) - T&M SOW1
Ministry of Justice,LAA,26/08/2015,512000-Intangible GBV - Additions,VA403-IDP - Infrastructure,CAPGEMINI UK PLC,2002016,"54,470.00 ",Digital Service Framework Agreement (DSF) - T&M SOW3
Ministry of Justice,LAA,26/08/2015,223000-Other Expenditure,VA094-Head of Legal,DUNCAN LEWIS#VA11310231,2002080,"28,000.00 ",External Solicitors Fees
MINISTRY OF JUSTICE,LAA,26/08/2015,Lower Crime,LEGAL AID FUND,MCSORLEY LEWIS LAW LTD,141322497,"25,000.00 ",Legal Aid Payment Lower Crime
MINISTRY OF JUSTICE,LAA,26/08/2015,Lower Crime,LEGAL AID FUND,MCGRATH & CO SOLICITORS,141323102,"25,000.00 ",Legal Aid Payment Lower Crime
MINISTRY OF JUSTICE,LAA,26/08/2015,Lower Crime,LEGAL AID FUND,HAMER CHILDS,141323111,"25,000.00 ",Legal Aid Payment Lower Crime
MINISTRY OF JUSTICE,LAA,26/08/2015,Lower Crime,LEGAL AID FUND,MCMILLAN WILLIAMS SOLICITORS LTD,141322650,"25,000.00 ",Legal Aid Payment Lower Crime
MINISTRY OF JUSTICE,LAA,26/08/2015,Lower Crime,LEGAL AID FUND,CLIVE REES & ASSOCIATES,141322496,"25,000.00 ",Legal Aid Payment Lower Crime
MINISTRY OF JUSTICE,LAA,26/08/2015,Legal Help,LEGAL AID FUND,TAMIL WELFARE ASSOCIATION (NEWHAM) UK,141338375,"25,021.23 ",Legal Aid Payment Legal Help
MINISTRY OF JUSTICE,LAA,12/08/2015,Higher Crime,LEGAL AID FUND,SJ LAW SOLICITORS,141139928,"25,023.52 ",Legal Aid Payment Higher Crime
MINISTRY OF JUSTICE,LAA,26/08/2015,Legal Help,LEGAL AID FUND,GRAHAME STOWE BATESON,141322201,"25,044.00 ",Legal Aid Payment Legal Help
MINISTRY OF JUSTICE,LAA,26/08/2015,Lower Crime,LEGAL AID FUND,NEIL FOLEY & COMPANY,141323258,"25,045.00 ",Legal Aid Payment Lower Crime
MINISTRY OF JUSTICE,LAA,26/08/2015,Lower Crime,LEGAL AID FUND,BAXTER BROWN MCARTHUR SOLICITORS,141322644,"25,100.00 ",Legal Aid Payment Lower Crime
MINISTRY OF JUSTICE,LAA,12/08/2015,Civil Representation,LEGAL AID FUND,DAVID J FOSTER & CO,141132449,"25,106.29 ",Legal Aid Payment Civil Representation
MINISTRY OF JUSTICE,LAA,05/08/2015,Civil Representation,LEGAL AID FUND,MARK WHITEHALL,140960304,"25,110.90 ",Legal Aid Payment Civil Representation
MINISTRY OF JUSTICE,LAA,26/08/2015,Lower Crime,LEGAL AID FUND,KEMPS,141323590,"25,117.00 ",Legal Aid Payment Lower Crime
MINISTRY OF JUSTICE,LAA,26/08/2015,Legal Help,LEGAL AID FUND,IMMIGRATION ADVICE SERVICE,141335031,"25,133.00 ",Legal Aid Payment Legal Help
MINISTRY OF JUSTICE,LAA,26/08/2015,Lower Crime,LEGAL AID FUND,HINE SOLICITORS,141323922,"25,164.00 ",Legal Aid Payment Lower Crime
MINISTRY OF JUSTICE,LAA,26/08/2015,Legal Help,LEGAL AID FUND,MIGRANT LEGAL PROJECT,141335507,"25,169.00 ",Legal Aid Payment Legal Help
MINISTRY OF JUSTICE,LAA,12/08/2015,Higher Crime,LEGAL AID FUND,VICTORIA A MEADS,141139702,"25,248.68 ",Legal Aid Payment Higher Crime
MINISTRY OF JUSTICE,LAA,26/08/2015,Lower Crime,LEGAL AID FUND,RENSHAW DERRICK & CO,141323731,"25,249.00 ",Legal Aid Payment Lower Crime
MINISTRY OF JUSTICE,LAA,26/08/2015,Legal Help,LEGAL AID FUND,O'DONNELLS SOLICITORS,141322311,"25,257.00 ",Legal Aid Payment Legal Help
MINISTRY OF JUSTICE,LAA,26/08/2015,Lower Crime,LEGAL AID FUND,JUNG LAW LTD,141323444,"25,265.00 ",Legal Aid Payment Lower Crime
MINISTRY OF JUSTICE,LAA,26/08/2015,Legal Help,LEGAL AID FUND,IMMIGRATION ADVICE SERVICE,141335016,"25,274.00 ",Legal Aid Payment Legal Help
MINISTRY OF JUSTICE,LAA,26/08/2015,Lower Crime,LEGAL AID FUND,DAVID AKE & CO,141323558,"25,294.00 ",Legal Aid Payment Lower Crime
MINISTRY OF JUSTICE,LAA,12/08/2015,Civil Representation,LEGAL AID FUND,DANIEL S FRIEDMAN,141130423,"25,294.80 ",Legal Aid Payment Civil Representation
MINISTRY OF JUSTICE,LAA,26/08/2015,Lower Crime,LEGAL AID FUND,RICHARD GRIFFITHS & CO,141323763,"25,316.00 ",Legal Aid Payment Lower Crime
MINISTRY OF JUSTICE,LAA,26/08/2015,Legal Help,LEGAL AID FUND,LEI DAT BAIG SOLICITORS LIMITED,141335653,"25,333.00 ",Legal Aid Payment Legal Help
MINISTRY OF JUSTICE,LAA,05/08/2015,Civil Representation,LEGAL AID FUND,JEREMY P WESTON,140948437,"25,336.80 ",Legal Aid Payment Civil Representation
MINISTRY OF JUSTICE,LAA,12/08/2015,Civil Representation,LEGAL AID FUND,ABIGAIL BOND,141132461,"25,382.40 ",Legal Aid Payment Civil Representation
MINISTRY OF JUSTICE,LAA,19/08/2015,Higher Crime,LEGAL AID FUND,DAVID N BENTLEY,141220223,"25,448.64 ",Legal Aid Payment Higher Crime
MINISTRY OF JUSTICE,LAA,26/08/2015,Lower Crime,LEGAL AID FUND,SWITALSKI'S LTD,141323510,"25,456.00 ",Legal Aid Payment Lower Crime
MINISTRY OF JUSTICE,LAA,26/08/2015,Higher Crime,LEGAL AID FUND,DAVID PHILLIPS & PARTNERS,141337177,"25,457.57 ",Legal Aid Payment Higher Crime
MINISTRY OF JUSTICE,LAA,26/08/2015,Civil Representation,LEGAL AID FUND,FIONA JAMIESON,141034649,"25,480.44 ",Legal Aid Payment Civil Representation
MINISTRY OF JUSTICE,LAA,26/08/2015,Lower Crime,LEGAL AID FUND,JERMAN SAMUELS & PEARSON LLP,141322576,"25,500.00 ",Legal Aid Payment Lower Crime
MINISTRY OF JUSTICE,LAA,26/08/2015,Legal Help,LEGAL AID FUND,ELDER RAHIMI LIMITED,141336007,"25,551.00 ",Legal Aid Payment Legal Help
MINISTRY OF JUSTICE,LAA,05/08/2015,Civil Representation,LEGAL AID FUND,KNOWLES BENNING LLP,141016575,"25,555.49 ",Legal Aid Payment Civil Representation
MINISTRY OF JUSTICE,LAA,05/08/2015,Civil Representation,LEGAL AID FUND,LACEYS,141049414,"25,557.05 ",Legal Aid Payment Civil Representation
MINISTRY OF JUSTICE,LAA,26/08/2015,Higher Crime,LEGAL AID FUND,CRIMINAL DEFENCE SOLICITORS,141300176,"25,576.03 ",Legal Aid Payment Higher Crime
MINISTRY OF JUSTICE,LAA,26/08/2015,Legal Help,LEGAL AID FUND,HOWELLS LLP,141321826,"25,600.00 ",Legal Aid Payment Legal Help
MINISTRY OF JUSTICE,LAA,26/08/2015,Lower Crime,LEGAL AID FUND,MURRAY BRANKIN,141323170,"25,600.00 ",Legal Aid Payment Lower Crime
MINISTRY OF JUSTICE,LAA,26/08/2015,Higher Crime,LEGAL AID FUND,SARAH A FORSHAW QC,141256514,"25,604.77 ",Legal Aid Payment Higher Crime
MINISTRY OF JUSTICE,LAA,26/08/2015,Lower Crime,LEGAL AID FUND,SAUNDERS SOLICITORS LTD,141322707,"25,700.00 ",Legal Aid Payment Lower Crime
MINISTRY OF JUSTICE,LAA,26/08/2015,Lower Crime,LEGAL AID FUND,SWAIN & CO SOLICITORS LLP,141322616,"25,700.00 ",Legal Aid Payment Lower Crime
MINISTRY OF JUSTICE,LAA,26/08/2015,Legal Help,LEGAL AID FUND,M H LEGAL,141321768,"25,700.00 ",Legal Aid Payment Legal Help
MINISTRY OF JUSTICE,LAA,12/08/2015,Higher Crime,LEGAL AID FUND,HETHERINGTONS SOLICITORS LTD-AVOCATE,141127053,"25,821.94 ",Legal Aid Payment Higher Crime
MINISTRY OF JUSTICE,LAA,19/08/2015,Higher Crime,LEGAL AID FUND,CHARNJIT SINGH JUTLA,141176846,"25,842.91 ",Legal Aid Payment Higher Crime
MINISTRY OF JUSTICE,LAA,12/08/2015,Higher Crime,LEGAL AID FUND,KINGSLEY NAPLEY LLP,141159706,"25,855.36 ",Legal Aid Payment Higher Crime
MINISTRY OF JUSTICE,LAA,05/08/2015,Higher Crime,LEGAL AID FUND,DAVID PHILLIPS & PARTNERS,141026867,"25,971.53 ",Legal Aid Payment Higher Crime
MINISTRY OF JUSTICE,LAA,26/08/2015,Lower Crime,LEGAL AID FUND,COULSON READ LEWIS,141323802,"25,994.00 ",Legal Aid Payment Lower Crime
MINISTRY OF JUSTICE,LAA,26/08/2015,Lower Crime,LEGAL AID FUND,MPR SOLICITORS LLP,141322724,"26,000.00 ",Legal Aid Payment Lower Crime
MINISTRY OF JUSTICE,LAA,26/08/2015,Lower Crime,LEGAL AID FUND,COLIN JONES CLARKE & HARTLAND SOLICITORS,141323192,"26,059.00 ",Legal Aid Payment Lower Crime
MINISTRY OF JUSTICE,LAA,26/08/2015,Lower Crime,LEGAL AID FUND,YARWOOD & STUBLEY,141322765,"26,100.00 ",Legal Aid Payment Lower Crime
MINISTRY OF JUSTICE,LAA,26/08/2015,Lower Crime,LEGAL AID FUND,HEALEY COLBON,141322565,"26,100.00 ",Legal Aid Payment Lower Crime
MINISTRY OF JUSTICE,LAA,26/08/2015,Legal Help,LEGAL AID FUND,DONOVAN NEWTON SOLICITORS,141322360,"26,121.00 ",Legal Aid Payment Legal Help
MINISTRY OF JUSTICE,LAA,05/08/2015,Higher Crime,LEGAL AID FUND,MARGUERITE RUSSELL,141026182,"26,145.42 ",Legal Aid Payment Higher Crime
MINISTRY OF JUSTICE,LAA,19/08/2015,Higher Crime,LEGAL AID FUND,WHITELOCK & STORR,141219751,"26,194.02 ",Legal Aid Payment Higher Crime
MINISTRY OF JUSTICE,LAA,19/08/2015,Higher Crime,LEGAL AID FUND,BARK & CO,141193431,"26,208.85 ",Legal Aid Payment Higher Crime
MINISTRY OF JUSTICE,LAA,26/08/2015,Legal Help,LEGAL AID FUND,BRITANNIA LAW PRACTICE LLP,141339848,"26,212.00 ",Legal Aid Payment Legal Help
MINISTRY OF JUSTICE,LAA,26/08/2015,Lower Crime,LEGAL AID FUND,LLOYDS PR SOLICITORS,141323311,"26,219.00 ",Legal Aid Payment Lower Crime
MINISTRY OF JUSTICE,LAA,12/08/2015,Higher Crime,LEGAL AID FUND,ASHRAF KHAN,141127464,"26,245.87 ",Legal Aid Payment Higher Crime
MINISTRY OF JUSTICE,LAA,26/08/2015,Lower Crime,LEGAL AID FUND,ROEBUCKS SOLICITORS,141323624,"26,256.00 ",Legal Aid Payment Lower Crime
MINISTRY OF JUSTICE,LAA,12/08/2015,Higher Crime,LEGAL AID FUND,MARTINE SNOWDON,141159934,"26,283.84 ",Legal Aid Payment Higher Crime
MINISTRY OF JUSTICE,LAA,26/08/2015,Lower Crime,LEGAL AID FUND,DJMS SOLICITORS LTD,141324052,"26,285.00 ",Legal Aid Payment Lower Crime
MINISTRY OF JUSTICE,LAA,26/08/2015,Lower Crime,LEGAL AID FUND,JOSEPH HILL & CO,141322665,"26,300.00 ",Legal Aid Payment Lower Crime
MINISTRY OF JUSTICE,LAA,26/08/2015,Lower Crime,LEGAL AID FUND,VEJA & CO LTD,141322655,"26,300.00 ",Legal Aid Payment Lower Crime
MINISTRY OF JUSTICE,LAA,12/08/2015,Civil Representation,LEGAL AID FUND,ALAN CARNIE,140745142,"26,308.80 ",Legal Aid Payment Civil Representation
MINISTRY OF JUSTICE,LAA,26/08/2015,Lower Crime,LEGAL AID FUND,JOHN FULLER & PARTNERS,141323309,"26,327.00 ",Legal Aid Payment Lower Crime
MINISTRY OF JUSTICE,LAA,26/08/2015,Legal Help,LEGAL AID FUND,FAIRWEATHER SOLICITORS LLP,141321811,"26,400.00 ",Legal Aid Payment Legal Help
MINISTRY OF JUSTICE,LAA,26/08/2015,Lower Crime,LEGAL AID FUND,WALTERS & PLASKITT-INC LESLIE DODD & CO,141323094,"26,400.00 ",Legal Aid Payment Lower Crime
MINISTRY OF JUSTICE,LAA,26/08/2015,Lower Crime,LEGAL AID FUND,LIONEL BLACKMAN SOLICITORS,141322958,"26,400.00 ",Legal Aid Payment Lower Crime
MINISTRY OF JUSTICE,LAA,26/08/2015,Legal Help,LEGAL AID FUND,TURPIN & MILLER LLP,141322405,"26,402.00 ",Legal Aid Payment Legal Help
MINISTRY OF JUSTICE,LAA,26/08/2015,Higher Crime,LEGAL AID FUND,KAYDERS SOLICITORS,141326391,"26,438.44 ",Legal Aid Payment Higher Crime
MINISTRY OF JUSTICE,LAA,26/08/2015,Higher Crime,LEGAL AID FUND,DENNINGS SOLICITORS LTD,141272563,"26,451.19 ",Legal Aid Payment Higher Crime
MINISTRY OF JUSTICE,LAA,26/08/2015,Lower Crime,LEGAL AID FUND,DAVID RUBIE MITCHELL & CO,141322625,"26,500.00 ",Legal Aid Payment Lower Crime
MINISTRY OF JUSTICE,LAA,26/08/2015,Higher Crime,LEGAL AID FUND,IMRAN KHAN & PARTNERS,141325648,"26,522.07 ",Legal Aid Payment Higher Crime
MINISTRY OF JUSTICE,LAA,26/08/2015,Lower Crime,LEGAL AID FUND,EDWARDS DUTHIE,141324077,"26,547.00 ",Legal Aid Payment Lower Crime
MINISTRY OF JUSTICE,LAA,26/08/2015,Lower Crime,LEGAL AID FUND,KIRWANS,141323878,"26,566.00 ",Legal Aid Payment Lower Crime
MINISTRY OF JUSTICE,LAA,26/08/2015,Legal Help,LEGAL AID FUND,CONROYS,141321873,"26,600.00 ",Legal Aid Payment Legal Help
MINISTRY OF JUSTICE,LAA,26/08/2015,Legal Help,LEGAL AID FUND,TRP SOLICITORS LTD,141321703,"26,600.00 ",Legal Aid Payment Legal Help
MINISTRY OF JUSTICE,LAA,26/08/2015,Higher Crime,LEGAL AID FUND,CARTWRIGHT KING SOLICITORS-ADVOCATE,141326469,"26,604.68 ",Legal Aid Payment Higher Crime
MINISTRY OF JUSTICE,LAA,05/08/2015,Higher Crime,LEGAL AID FUND,TRACY J AYLING QC,141081492,"26,609.29 ",Legal Aid Payment Higher Crime
MINISTRY OF JUSTICE,LAA,26/08/2015,Lower Crime,LEGAL AID FUND,GARTSIDES,141323208,"26,639.00 ",Legal Aid Payment Lower Crime
MINISTRY OF JUSTICE,LAA,19/08/2015,Civil Representation,LEGAL AID FUND,HAY & KILNER,141232750,"26,642.14 ",Legal Aid Payment Civil Representation
MINISTRY OF JUSTICE,LAA,12/08/2015,Higher Crime,LEGAL AID FUND,PARAMJIT AHLUWALIA,141160738,"26,687.52 ",Legal Aid Payment Higher Crime
MINISTRY OF JUSTICE,LAA,26/08/2015,Lower Crime,LEGAL AID FUND,HUNT & COOMBS LLP,141322596,"26,700.00 ",Legal Aid Payment Lower Crime
MINISTRY OF JUSTICE,LAA,26/08/2015,Legal Help,LEGAL AID FUND,ROEBUCKS SOLICITORS,141322316,"26,783.00 ",Legal Aid Payment Legal Help
MINISTRY OF JUSTICE,LAA,26/08/2015,Lower Crime,LEGAL AID FUND,ERIC ROBINSON SOLICITORS,141322980,"26,800.00 ",Legal Aid Payment Lower Crime
MINISTRY OF JUSTICE,LAA,26/08/2015,Higher Crime,LEGAL AID FUND,ZAFAR ALI,141326235,"26,839.52 ",Legal Aid Payment Higher Crime
MINISTRY OF JUSTICE,LAA,19/08/2015,Civil Representation,LEGAL AID FUND,HOGANS,141185603,"26,879.95 ",Legal Aid Payment Civil Representation
MINISTRY OF JUSTICE,LAA,26/08/2015,Lower Crime,LEGAL AID FUND,TUCKERS SOLICITORS LLP,141323105,"26,900.00 ",Legal Aid Payment Lower Crime
MINISTRY OF JUSTICE,LAA,26/08/2015,Higher Crime,LEGAL AID FUND,SARAH ALLEN,141300310,"26,909.64 ",Legal Aid Payment Higher Crime
MINISTRY OF JUSTICE,LAA,26/08/2015,Higher Crime,LEGAL AID FUND,MUSTAPHA HAKME,141256973,"26,909.64 ",Legal Aid Payment Higher Crime
MINISTRY OF JUSTICE,LAA,26/08/2015,Civil Representation,LEGAL AID FUND,KATHRYN M KOROL,141311833,"26,922.48 ",Legal Aid Payment Civil Representation
MINISTRY OF JUSTICE,LAA,05/08/2015,Lower Crime,LEGAL AID FUND,SWITALSKI'S LTD,141073875,"26,925.05 ",Legal Aid Payment Lower Crime
MINISTRY OF JUSTICE,LAA,26/08/2015,Civil Representation,LEGAL AID FUND,HORNBY & LEVY,141260198,"26,951.60 ",Legal Aid Payment Civil Representation
MINISTRY OF JUSTICE,LAA,26/08/2015,Higher Crime,LEGAL AID FUND,J D SPICER ZEB,141256629,"26,992.54 ",Legal Aid Payment Higher Crime
MINISTRY OF JUSTICE,LAA,19/08/2015,Higher Crime,LEGAL AID FUND,MANN & CO SOLICITORS,141219959,"26,992.54 ",Legal Aid Payment Higher Crime
MINISTRY OF JUSTICE,LAA,26/08/2015,Lower Crime,LEGAL AID FUND,HAYES LAW SOLICITORS AND ADVOCATES LLP,141324078,"26,997.00 ",Legal Aid Payment Lower Crime
MINISTRY OF JUSTICE,LAA,26/08/2015,Lower Crime,LEGAL AID FUND,CLARKE KIERNAN LLP,141323664,"26,999.00 ",Legal Aid Payment Lower Crime
MINISTRY OF JUSTICE,LAA,26/08/2015,Lower Crime,LEGAL AID FUND,RICHARD BODY & CO,141322955,"27,000.00 ",Legal Aid Payment Lower Crime
MINISTRY OF JUSTICE,LAA,26/08/2015,Lower Crime,LEGAL AID FUND,T S LAW LTD,141323169,"27,000.00 ",Legal Aid Payment Lower Crime
MINISTRY OF JUSTICE,LAA,26/08/2015,Lower Crime,LEGAL AID FUND,T S LAW LTD,141322688,"27,000.00 ",Legal Aid Payment Lower Crime
MINISTRY OF JUSTICE,LAA,26/08/2015,Lower Crime,LEGAL AID FUND,ALEXANDER BENNETT,141323181,"27,000.00 ",Legal Aid Payment Lower Crime
MINISTRY OF JUSTICE,LAA,26/08/2015,Lower Crime,LEGAL AID FUND,SMITH PARTNERSHIP,141322546,"27,000.00 ",Legal Aid Payment Lower Crime
MINISTRY OF JUSTICE,LAA,26/08/2015,Lower Crime,LEGAL AID FUND,DAVID GRAY LLP,141322785,"27,000.00 ",Legal Aid Payment Lower Crime
MINISTRY OF JUSTICE,LAA,19/08/2015,Higher Crime,LEGAL AID FUND,LEWIS NEDAS & CO,141242978,"27,002.71 ",Legal Aid Payment Higher Crime
MINISTRY OF JUSTICE,LAA,12/08/2015,Higher Crime,LEGAL AID FUND,SAUNDERS SOLICITORS LTD-ADVOCATE,141125891,"27,008.76 ",Legal Aid Payment Higher Crime
MINISTRY OF JUSTICE,LAA,26/08/2015,Legal Help,LEGAL AID FUND,ELDER RAHIMI LIMITED,141322296,"27,085.00 ",Legal Aid Payment Legal Help
MINISTRY OF JUSTICE,LAA,26/08/2015,Lower Crime,LEGAL AID FUND,TRANTERS CRIMINAL LAW PRACTICE,141322929,"27,100.00 ",Legal Aid Payment Lower Crime
MINISTRY OF JUSTICE,LAA,26/08/2015,Lower Crime,LEGAL AID FUND,VYMAN SOLICITORS LIMITED,141323660,"27,125.00 ",Legal Aid Payment Lower Crime
MINISTRY OF JUSTICE,LAA,26/08/2015,Civil Representation,LEGAL AID FUND,SHARON LOVE ,141277411,"27,154.44 ",Legal Aid Payment Civil Representation
MINISTRY OF JUSTICE,LAA,19/08/2015,Civil Representation,LEGAL AID FUND,STEEL & SHAMASH,141235684,"27,238.73 ",Legal Aid Payment Civil Representation
MINISTRY OF JUSTICE,LAA,26/08/2015,Lower Crime,LEGAL AID FUND,QUALITYSOLICITORS HPJV,141323210,"27,282.00 ",Legal Aid Payment Lower Crime
MINISTRY OF JUSTICE,LAA,19/08/2015,Civil Representation,LEGAL AID FUND,MICHAEL J KENNEDY,140949589,"27,345.60 ",Legal Aid Payment Civil Representation
MINISTRY OF JUSTICE,LAA,26/08/2015,Higher Crime,LEGAL AID FUND,MAURO MASELLI,141272669,"27,360.60 ",Legal Aid Payment Higher Crime
MINISTRY OF JUSTICE,LAA,12/08/2015,Higher Crime,LEGAL AID FUND,CHARLES F ROYLE,141113551,"27,456.60 ",Legal Aid Payment Higher Crime
MINISTRY OF JUSTICE,LAA,26/08/2015,Higher Crime,LEGAL AID FUND,TRAYMANS LLP SOLICITORS,141287792,"27,472.15 ",Legal Aid Payment Higher Crime
MINISTRY OF JUSTICE,LAA,12/08/2015,Higher Crime,LEGAL AID FUND,TUCKERS SOLICITORS LLP,141103560,"27,484.12 ",Legal Aid Payment Higher Crime
MINISTRY OF JUSTICE,LAA,26/08/2015,Lower Crime,LEGAL AID FUND,MCLARTYS SOLICITORS,141322677,"27,500.00 ",Legal Aid Payment Lower Crime
MINISTRY OF JUSTICE,LAA,26/08/2015,Civil Representation,LEGAL AID FUND,VENTERS SOLICITORS,141263009,"27,523.64 ",Legal Aid Payment Civil Representation
MINISTRY OF JUSTICE,LAA,19/08/2015,Higher Crime,LEGAL AID FUND,GUNEY CLARK & RYAN LTD CO,141214575,"27,536.04 ",Legal Aid Payment Higher Crime
MINISTRY OF JUSTICE,LAA,12/08/2015,Civil Representation,LEGAL AID FUND,HODDERS LAW LTD,141169406,"27,583.81 ",Legal Aid Payment Civil Representation
MINISTRY OF JUSTICE,LAA,26/08/2015,Lower Crime,LEGAL AID FUND,MANN & CO SOLICITORS,141323085,"27,600.00 ",Legal Aid Payment Lower Crime
MINISTRY OF JUSTICE,LAA,26/08/2015,Lower Crime,LEGAL AID FUND,QUALITYSOLICITORS JONES ROBERTSON,141323572,"27,674.00 ",Legal Aid Payment Lower Crime
MINISTRY OF JUSTICE,LAA,05/08/2015,Higher Crime,LEGAL AID FUND,BHATIA BEST LTD,141081031,"27,677.66 ",Legal Aid Payment Higher Crime
MINISTRY OF JUSTICE,LAA,26/08/2015,Lower Crime,LEGAL AID FUND,RICHARDSON SOLICITORS,141322972,"27,700.00 ",Legal Aid Payment Lower Crime
MINISTRY OF JUSTICE,LAA,05/08/2015,Higher Crime,LEGAL AID FUND,QUINN MELVILLE,141075140,"27,748.84 ",Legal Aid Payment Higher Crime
MINISTRY OF JUSTICE,LAA,12/08/2015,Higher Crime,LEGAL AID FUND,CHRISTOPHER WHITEHOUSE,141113070,"27,823.49 ",Legal Aid Payment Higher Crime
MINISTRY OF JUSTICE,LAA,26/08/2015,Legal Help,LEGAL AID FUND,ALASTAIR BATEMAN & CO,141322185,"27,833.00 ",Legal Aid Payment Legal Help
MINISTRY OF JUSTICE,LAA,26/08/2015,Lower Crime,LEGAL AID FUND,DALTON HOLMES GRAY,141323428,"27,856.00 ",Legal Aid Payment Lower Crime
MINISTRY OF JUSTICE,LAA,05/08/2015,Civil Representation,LEGAL AID FUND,CATHERINE P JENKINS,141047427,"27,902.40 ",Legal Aid Payment Civil Representation
MINISTRY OF JUSTICE,LAA,26/08/2015,Lower Crime,LEGAL AID FUND,THE PURKISS PRACTICE,141322964,"28,000.00 ",Legal Aid Payment Lower Crime
MINISTRY OF JUSTICE,LAA,26/08/2015,Lower Crime,LEGAL AID FUND,ASHLEY SMITH & CO,141322699,"28,000.00 ",Legal Aid Payment Lower Crime
MINISTRY OF JUSTICE,LAA,26/08/2015,Lower Crime,LEGAL AID FUND,SWAIN & CO SOLICITORS LLP,141322736,"28,000.00 ",Legal Aid Payment Lower Crime
MINISTRY OF JUSTICE,LAA,26/08/2015,Lower Crime,LEGAL AID FUND,O'GARRA'S SOLICITORS,141322858,"28,000.00 ",Legal Aid Payment Lower Crime
MINISTRY OF JUSTICE,LAA,12/08/2015,Higher Crime,LEGAL AID FUND,STUART MILLER SOLICITORS LTD,141127545,"28,027.61 ",Legal Aid Payment Higher Crime
MINISTRY OF JUSTICE,LAA,12/08/2015,Higher Crime,LEGAL AID FUND,JOHN W FITZGERALD,141127125,"28,050.13 ",Legal Aid Payment Higher Crime
MINISTRY OF JUSTICE,LAA,12/08/2015,Higher Crime,LEGAL AID FUND,NIGEL ROBERT BOOTH,141113930,"28,072.34 ",Legal Aid Payment Higher Crime
MINISTRY OF JUSTICE,LAA,26/08/2015,Higher Crime,LEGAL AID FUND,TUCKERS SOLICITORS LLP,141326228,"28,101.74 ",Legal Aid Payment Higher Crime
MINISTRY OF JUSTICE,LAA,05/08/2015,Higher Crime,LEGAL AID FUND,RUSTEM GUARDIAN SOLICITORS,141040881,"28,103.41 ",Legal Aid Payment Higher Crime
MINISTRY OF JUSTICE,LAA,26/08/2015,Higher Crime,LEGAL AID FUND,K LEGAL SOLICITORS,141325737,"28,110.25 ",Legal Aid Payment Higher Crime
MINISTRY OF JUSTICE,LAA,26/08/2015,Legal Help,LEGAL AID FUND,ISLINGTON LAW CENTRE,141322469,"28,121.00 ",Legal Aid Payment Legal Help
MINISTRY OF JUSTICE,LAA,26/08/2015,Legal Help,LEGAL AID FUND,BINDMANS LLP,141278595,"28,122.09 ",Legal Aid Payment Legal Help
MINISTRY OF JUSTICE,LAA,26/08/2015,Higher Crime,LEGAL AID FUND,ANDREW T J COPELAND,141325795,"28,123.44 ",Legal Aid Payment Higher Crime
MINISTRY OF JUSTICE,LAA,12/08/2015,Higher Crime,LEGAL AID FUND,CHARLES A BOTT QC,141154766,"28,132.50 ",Legal Aid Payment Higher Crime
MINISTRY OF JUSTICE,LAA,26/08/2015,Legal Help,LEGAL AID FUND,BINDMANS LLP,141321918,"28,200.00 ",Legal Aid Payment Legal Help
MINISTRY OF JUSTICE,LAA,26/08/2015,Lower Crime,LEGAL AID FUND,NEEDHAM POULIER LTD,141323450,"28,214.00 ",Legal Aid Payment Lower Crime
MINISTRY OF JUSTICE,LAA,05/08/2015,Higher Crime,LEGAL AID FUND,QUINN MELVILLE,141011598,"28,214.63 ",Legal Aid Payment Higher Crime
MINISTRY OF JUSTICE,LAA,26/08/2015,Lower Crime,LEGAL AID FUND,HARDING EVANS LLP,141323206,"28,218.00 ",Legal Aid Payment Lower Crime
MINISTRY OF JUSTICE,LAA,19/08/2015,Civil Representation,LEGAL AID FUND,HOPKINS LAW LTD,141247501,"28,232.04 ",Legal Aid Payment Civil Representation
MINISTRY OF JUSTICE,LAA,26/08/2015,Civil Representation,LEGAL AID FUND,QUALITYSOLICITORS DEVONALDS,141292516,"28,232.04 ",Legal Aid Payment Civil Representation
MINISTRY OF JUSTICE,LAA,26/08/2015,Lower Crime,LEGAL AID FUND,ACHOM & PARTNERS,141323964,"28,247.00 ",Legal Aid Payment Lower Crime
MINISTRY OF JUSTICE,LAA,19/08/2015,Civil Representation,LEGAL AID FUND,J PATRICK H WAINWRIGHT,141183229,"28,252.80 ",Legal Aid Payment Civil Representation
MINISTRY OF JUSTICE,LAA,26/08/2015,Lower Crime,LEGAL AID FUND,COUSINS TYRER SOLICITORS,141323559,"28,265.00 ",Legal Aid Payment Lower Crime
MINISTRY OF JUSTICE,LAA,26/08/2015,Lower Crime,LEGAL AID FUND,WATSON WOODHOUSE SOLICITORS LLP,141322769,"28,300.00 ",Legal Aid Payment Lower Crime
MINISTRY OF JUSTICE,LAA,26/08/2015,Higher Crime,LEGAL AID FUND,KANGS SOLICITORS,141287007,"28,339.94 ",Legal Aid Payment Higher Crime
MINISTRY OF JUSTICE,LAA,19/08/2015,Higher Crime,LEGAL AID FUND,ABV SOLICITORS,141220944,"28,379.42 ",Legal Aid Payment Higher Crime
MINISTRY OF JUSTICE,LAA,26/08/2015,Lower Crime,LEGAL AID FUND,FORBES SOLICITORS,141322907,"28,400.00 ",Legal Aid Payment Lower Crime
MINISTRY OF JUSTICE,LAA,19/08/2015,Higher Crime,LEGAL AID FUND,ALEXANDER GORST,141219868,"28,470.04 ",Legal Aid Payment Higher Crime
MINISTRY OF JUSTICE,LAA,26/08/2015,Legal Help,LEGAL AID FUND,KESAR & CO SOLICITORS,141335537,"28,497.00 ",Legal Aid Payment Legal Help
MINISTRY OF JUSTICE,LAA,05/08/2015,Higher Crime,LEGAL AID FUND,STEPHEN VULLO,141040934,"28,499.53 ",Legal Aid Payment Higher Crime
MINISTRY OF JUSTICE,LAA,26/08/2015,Lower Crime,LEGAL AID FUND,VHS FLETCHERS,141322540,"28,500.00 ",Legal Aid Payment Lower Crime
MINISTRY OF JUSTICE,LAA,26/08/2015,Lower Crime,LEGAL AID FUND,HORSMAN SOLICITORS LTD,141323671,"28,568.00 ",Legal Aid Payment Lower Crime
MINISTRY OF JUSTICE,LAA,05/08/2015,Civil Representation,LEGAL AID FUND,PAUL M STOREY QC,141047606,"28,598.40 ",Legal Aid Payment Civil Representation
MINISTRY OF JUSTICE,LAA,26/08/2015,Lower Crime,LEGAL AID FUND,OLLIERS,141323617,"28,605.00 ",Legal Aid Payment Lower Crime
MINISTRY OF JUSTICE,LAA,26/08/2015,Lower Crime,LEGAL AID FUND,SMITH PARTNERSHIP,141323109,"28,700.00 ",Legal Aid Payment Lower Crime
MINISTRY OF JUSTICE,LAA,26/08/2015,Higher Crime,LEGAL AID FUND,BILL CHARLTON SOLICITORS,141325165,"28,722.83 ",Legal Aid Payment Higher Crime
MINISTRY OF JUSTICE,LAA,05/08/2015,Higher Crime,LEGAL AID FUND,H P GOWER SOLICITORS,141027305,"28,741.07 ",Legal Aid Payment Higher Crime
MINISTRY OF JUSTICE,LAA,26/08/2015,Lower Crime,LEGAL AID FUND,REEDS SOLICITORS LTD,141324082,"28,797.00 ",Legal Aid Payment Lower Crime
MINISTRY OF JUSTICE,LAA,26/08/2015,Lower Crime,LEGAL AID FUND,COOMBER RICH SOLICITORS,141323003,"28,800.00 ",Legal Aid Payment Lower Crime
MINISTRY OF JUSTICE,LAA,26/08/2015,Higher Crime,LEGAL AID FUND,BRIONY MOLYNEUX,141257016,"28,854.67 ",Legal Aid Payment Higher Crime
MINISTRY OF JUSTICE,LAA,26/08/2015,Lower Crime,LEGAL AID FUND,BROOMHEAD & SAUL,141323035,"28,900.00 ",Legal Aid Payment Lower Crime
MINISTRY OF JUSTICE,LAA,26/08/2015,Lower Crime,LEGAL AID FUND,FARLEYS SOLICITORS LLP,141322888,"28,900.00 ",Legal Aid Payment Lower Crime
MINISTRY OF JUSTICE,LAA,19/08/2015,Higher Crime,LEGAL AID FUND,J KEITH HARRISON,141194089,"28,917.24 ",Legal Aid Payment Higher Crime
MINISTRY OF JUSTICE,LAA,26/08/2015,Lower Crime,LEGAL AID FUND,HILL TWINE,141324067,"28,927.00 ",Legal Aid Payment Lower Crime
MINISTRY OF JUSTICE,LAA,26/08/2015,Legal Help,LEGAL AID FUND,APPLEMAN LEGAL,141337109,"28,933.00 ",Legal Aid Payment Legal Help
MINISTRY OF JUSTICE,LAA,26/08/2015,Higher Crime,LEGAL AID FUND,KENNETH M BARROW & CO,141325712,"28,946.28 ",Legal Aid Payment Higher Crime
MINISTRY OF JUSTICE,LAA,26/08/2015,Higher Crime,LEGAL AID FUND,RICHARD M LITTLER,141300768,"28,994.76 ",Legal Aid Payment Higher Crime
MINISTRY OF JUSTICE,LAA,05/08/2015,Higher Crime,LEGAL AID FUND,JAMES MURRAY SOLICITORS,141082025,"28,997.22 ",Legal Aid Payment Higher Crime
MINISTRY OF JUSTICE,LAA,26/08/2015,Lower Crime,LEGAL AID FUND,CARTWRIGHT KING SOLICITORS,141323187,"29,000.00 ",Legal Aid Payment Lower Crime
MINISTRY OF JUSTICE,LAA,26/08/2015,Lower Crime,LEGAL AID FUND,OBW PERERA LTD,141322593,"29,000.00 ",Legal Aid Payment Lower Crime
MINISTRY OF JUSTICE,LAA,26/08/2015,Lower Crime,LEGAL AID FUND,TRANTERS CRIMINAL LAW PRACTICE,141322932,"29,000.00 ",Legal Aid Payment Lower Crime
MINISTRY OF JUSTICE,LAA,12/08/2015,Higher Crime,LEGAL AID FUND,SAUNDERS SOLICITORS LTD,141160336,"29,002.13 ",Legal Aid Payment Higher Crime
MINISTRY OF JUSTICE,LAA,26/08/2015,Higher Crime,LEGAL AID FUND,FARLEYS SOLICITORS LLP,141256360,"29,002.13 ",Legal Aid Payment Higher Crime
MINISTRY OF JUSTICE,LAA,05/08/2015,Higher Crime,LEGAL AID FUND,STUART MILLER SOLICITORS LTD,141011264,"29,017.80 ",Legal Aid Payment Higher Crime
MINISTRY OF JUSTICE,LAA,19/08/2015,Civil Representation,LEGAL AID FUND,VENTERS SOLICITORS,3000000363040009,"29,030.27 ",Legal Aid Payment Civil Representation
MINISTRY OF JUSTICE,LAA,05/08/2015,Civil Representation,LEGAL AID FUND,BRENDAN FLEMING SOLICITORS,141072515,"29,048.34 ",Legal Aid Payment Civil Representation
MINISTRY OF JUSTICE,LAA,26/08/2015,Civil Representation,LEGAL AID FUND,SIMON ROWBOTHAM,141234561,"29,073.60 ",Legal Aid Payment Civil Representation
MINISTRY OF JUSTICE,LAA,26/08/2015,Lower Crime,LEGAL AID FUND,SUNDIP MURRIA SOLICITORS,141323128,"29,100.00 ",Legal Aid Payment Lower Crime
MINISTRY OF JUSTICE,LAA,12/08/2015,Higher Crime,LEGAL AID FUND,MATTHEW C LAWSON,141139820,"29,203.68 ",Legal Aid Payment Higher Crime
MINISTRY OF JUSTICE,LAA,26/08/2015,Lower Crime,LEGAL AID FUND,MCCORMACKS LAW,141323900,"29,237.00 ",Legal Aid Payment Lower Crime
MINISTRY OF JUSTICE,LAA,26/08/2015,Higher Crime,LEGAL AID FUND,HALLINAN BLACKBURN GITTINGS & NOTT,141287677,"29,292.86 ",Legal Aid Payment Higher Crime
MINISTRY OF JUSTICE,LAA,26/08/2015,Legal Help,LEGAL AID FUND,BIRNBERG PEIRCE LTD,141321620,"29,300.00 ",Legal Aid Payment Legal Help
MINISTRY OF JUSTICE,LAA,26/08/2015,Lower Crime,LEGAL AID FUND,KESAR & CO SOLICITORS,141323987,"29,419.00 ",Legal Aid Payment Lower Crime
MINISTRY OF JUSTICE,LAA,19/08/2015,Civil Representation,LEGAL AID FUND,SIMON D HIRST,141245574,"29,430.00 ",Legal Aid Payment Civil Representation
MINISTRY OF JUSTICE,LAA,19/08/2015,Civil Representation,LEGAL AID FUND,DAVID P A ROWLANDS,141232813,"29,430.00 ",Legal Aid Payment Civil Representation
MINISTRY OF JUSTICE,LAA,05/08/2015,Civil Representation,LEGAL AID FUND,LAWRENCE & CO,141033360,"29,480.13 ",Legal Aid Payment Civil Representation
MINISTRY OF JUSTICE,LAA,26/08/2015,Lower Crime,LEGAL AID FUND,WATSON WOODHOUSE SOLICITORS LLP,141322764,"29,500.00 ",Legal Aid Payment Lower Crime
MINISTRY OF JUSTICE,LAA,26/08/2015,Lower Crime,LEGAL AID FUND,STEPHEN BURDON SOLICITORS,141322539,"29,500.00 ",Legal Aid Payment Lower Crime
MINISTRY OF JUSTICE,LAA,12/08/2015,Higher Crime,LEGAL AID FUND,OWEN WHITE & CATLIN,141139609,"29,541.37 ",Legal Aid Payment Higher Crime
MINISTRY OF JUSTICE,LAA,26/08/2015,Higher Crime,LEGAL AID FUND,HANSON YOUNG & CO SOLICITORS,141257435,"29,541.37 ",Legal Aid Payment Higher Crime
MINISTRY OF JUSTICE,LAA,26/08/2015,Legal Help,LEGAL AID FUND,LISA MARIE MCNULTY SOLICITOR,141322312,"29,596.00 ",Legal Aid Payment Legal Help
MINISTRY OF JUSTICE,LAA,05/08/2015,Higher Crime,LEGAL AID FUND,ABV SOLICITORS,141041874,"29,664.55 ",Legal Aid Payment Higher Crime
MINISTRY OF JUSTICE,LAA,26/08/2015,Higher Crime,LEGAL AID FUND,RH LAW LLP,141256914,"29,664.55 ",Legal Aid Payment Higher Crime
MINISTRY OF JUSTICE,LAA,19/08/2015,Higher Crime,LEGAL AID FUND,IMRAN KHAN & PARTNERS,141220908,"29,673.00 ",Legal Aid Payment Higher Crime
MINISTRY OF JUSTICE,LAA,26/08/2015,Higher Crime,LEGAL AID FUND,PAUL C REID QC,141325528,"29,830.85 ",Legal Aid Payment Higher Crime
MINISTRY OF JUSTICE,LAA,05/08/2015,Higher Crime,LEGAL AID FUND,FRISBY SOLICITORS LTD,141041083,"29,847.39 ",Legal Aid Payment Higher Crime
MINISTRY OF JUSTICE,LAA,26/08/2015,Lower Crime,LEGAL AID FUND,PEARSON CAULFIELD,141323504,"29,865.00 ",Legal Aid Payment Lower Crime
MINISTRY OF JUSTICE,LAA,19/08/2015,Higher Crime,LEGAL AID FUND,GRAEME J WILSON,141193528,"29,895.17 ",Legal Aid Payment Higher Crime
MINISTRY OF JUSTICE,LAA,26/08/2015,Lower Crime,LEGAL AID FUND,CARTER OSBORNE LTD,141323281,"29,910.00 ",Legal Aid Payment Lower Crime
MINISTRY OF JUSTICE,LAA,19/08/2015,Higher Crime,LEGAL AID FUND,HUSSAIN SOLICITORS LTD,141242236,"29,958.76 ",Legal Aid Payment Higher Crime
MINISTRY OF JUSTICE,LAA,26/08/2015,Civil Representation,LEGAL AID FUND,AMANDA C A MILLER,141200024,"29,987.17 ",Legal Aid Payment Civil Representation
MINISTRY OF JUSTICE,LAA,12/08/2015,Civil Representation,LEGAL AID FUND,BATTENS LTD,141143038,"29,989.37 ",Legal Aid Payment Civil Representation
MINISTRY OF JUSTICE,LAA,26/08/2015,Lower Crime,LEGAL AID FUND,CARTWRIGHT CLARK LTD,141323710,"29,993.00 ",Legal Aid Payment Lower Crime
MINISTRY OF JUSTICE,LAA,26/08/2015,Lower Crime,LEGAL AID FUND,PALMERS CRIMINAL DEFENCE SOLICITORS,141322957,"30,000.00 ",Legal Aid Payment Lower Crime
MINISTRY OF JUSTICE,LAA,26/08/2015,Lower Crime,LEGAL AID FUND,HEALEY COLBON,141322567,"30,000.00 ",Legal Aid Payment Lower Crime
MINISTRY OF JUSTICE,LAA,26/08/2015,Lower Crime,LEGAL AID FUND,GEPP & SONS SOLICITORS,141322589,"30,000.00 ",Legal Aid Payment Lower Crime
MINISTRY OF JUSTICE,LAA,26/08/2015,Lower Crime,LEGAL AID FUND,HDH LAW,141323157,"30,000.00 ",Legal Aid Payment Lower Crime
MINISTRY OF JUSTICE,LAA,26/08/2015,Lower Crime,LEGAL AID FUND,GURNEY HARDEN,141323669,"30,024.00 ",Legal Aid Payment Lower Crime
MINISTRY OF JUSTICE,LAA,12/08/2015,Higher Crime,LEGAL AID FUND,MOHABIRS SOLICITORS,141099759,"30,065.59 ",Legal Aid Payment Higher Crime
MINISTRY OF JUSTICE,LAA,26/08/2015,Lower Crime,LEGAL AID FUND,PENFOLD & MCPHERSON,141323715,"30,093.00 ",Legal Aid Payment Lower Crime
MINISTRY OF JUSTICE,LAA,12/08/2015,Lower Crime,LEGAL AID FUND,HCB CLIVE SHEPHERD & CO,141169816,"30,168.21 ",Legal Aid Payment Lower Crime
MINISTRY OF JUSTICE,LAA,26/08/2015,Lower Crime,LEGAL AID FUND,MORTONS SOLICITORS LTD,141323656,"30,215.00 ",Legal Aid Payment Lower Crime
MINISTRY OF JUSTICE,LAA,26/08/2015,Lower Crime,LEGAL AID FUND,REEDS SOLICITORS LTD,141323875,"30,267.00 ",Legal Aid Payment Lower Crime
MINISTRY OF JUSTICE,LAA,25/08/2015,Higher Crime,LEGAL AID FUND,BLACKFORDS LLP,141054184,"30,294.37 ",Legal Aid Payment Higher Crime
MINISTRY OF JUSTICE,LAA,17/08/2015,Civil Representation,LEGAL AID FUND,FRANCES M T OLDHAM,200000000029,"30,309.38 ",Legal Aid Payment Civil Representation
MINISTRY OF JUSTICE,LAA,05/08/2015,Higher Crime,LEGAL AID FUND,THE JOHNSON PARTNERSHIP,141011208,"30,351.53 ",Legal Aid Payment Higher Crime
MINISTRY OF JUSTICE,LAA,26/08/2015,Legal Help,LEGAL AID FUND,THOMPSON & CO,141321810,"30,400.00 ",Legal Aid Payment Legal Help
MINISTRY OF JUSTICE,LAA,26/08/2015,Lower Crime,LEGAL AID FUND,DOBSONS,141322648,"30,400.00 ",Legal Aid Payment Lower Crime
MINISTRY OF JUSTICE,LAA,05/08/2015,Higher Crime,LEGAL AID FUND,JOSEPH HILL & CO,141012687,"30,473.76 ",Legal Aid Payment Higher Crime
MINISTRY OF JUSTICE,LAA,26/08/2015,Lower Crime,LEGAL AID FUND,FDR LAW,141323571,"30,491.00 ",Legal Aid Payment Lower Crime
MINISTRY OF JUSTICE,LAA,26/08/2015,Lower Crime,LEGAL AID FUND,RICHARD HASWELL SOLICITORS LLP,141323501,"30,494.00 ",Legal Aid Payment Lower Crime
MINISTRY OF JUSTICE,LAA,05/08/2015,Lower Crime,LEGAL AID FUND,NIGEL WELLER & CO,141088043,"30,498.11 ",Legal Aid Payment Lower Crime
MINISTRY OF JUSTICE,LAA,26/08/2015,Lower Crime,LEGAL AID FUND,FRASER DAWBARNS LLP,141322581,"30,500.00 ",Legal Aid Payment Lower Crime
MINISTRY OF JUSTICE,LAA,26/08/2015,Lower Crime,LEGAL AID FUND,ALAN HARRIS SOLICITORS LTD,141323031,"30,500.00 ",Legal Aid Payment Lower Crime
MINISTRY OF JUSTICE,LAA,26/08/2015,Higher Crime,LEGAL AID FUND,EMMA L KURZNER,141256677,"30,506.69 ",Legal Aid Payment Higher Crime
MINISTRY OF JUSTICE,LAA,26/08/2015,Higher Crime,LEGAL AID FUND,JANINA S PASIUK,141287597,"30,523.00 ",Legal Aid Payment Higher Crime
MINISTRY OF JUSTICE,LAA,19/08/2015,Higher Crime,LEGAL AID FUND,SIMON P MAYO QC,141220903,"30,528.07 ",Legal Aid Payment Higher Crime
MINISTRY OF JUSTICE,LAA,26/08/2015,Civil Representation,LEGAL AID FUND,DAFYDD GRIFFITHS,141248306,"30,607.20 ",Legal Aid Payment Civil Representation
MINISTRY OF JUSTICE,LAA,26/08/2015,Civil Representation,LEGAL AID FUND,AMANDA C A MILLER,141201206,"30,607.20 ",Legal Aid Payment Civil Representation
MINISTRY OF JUSTICE,LAA,26/08/2015,Lower Crime,LEGAL AID FUND,CRIMINAL DEFENCE MILTON KEYNES LTD,141322992,"30,700.00 ",Legal Aid Payment Lower Crime
MINISTRY OF JUSTICE,LAA,26/08/2015,Lower Crime,LEGAL AID FUND,DRISCOLL YOUNG SOLICITORS LIMITED,141323211,"30,777.00 ",Legal Aid Payment Lower Crime
MINISTRY OF JUSTICE,LAA,26/08/2015,Lower Crime,LEGAL AID FUND,HINE SOLICITORS,141323916,"30,793.00 ",Legal Aid Payment Lower Crime
MINISTRY OF JUSTICE,LAA,05/08/2015,Higher Crime,LEGAL AID FUND,HENRY BLAXLAND QC,141041249,"30,794.72 ",Legal Aid Payment Higher Crime
MINISTRY OF JUSTICE,LAA,19/08/2015,Higher Crime,LEGAL AID FUND,KERIM FUAD QC,141242610,"30,805.01 ",Legal Aid Payment Higher Crime
MINISTRY OF JUSTICE,LAA,17/08/2015,Civil Representation,LEGAL AID FUND,FRANCES M T OLDHAM,135459227,"30,812.40 ",Legal Aid Payment Civil Representation
MINISTRY OF JUSTICE,LAA,26/08/2015,Lower Crime,LEGAL AID FUND,WALKER LAHIVE,141323738,"30,854.00 ",Legal Aid Payment Lower Crime
MINISTRY OF JUSTICE,LAA,26/08/2015,Lower Crime,LEGAL AID FUND,TATES,141322851,"31,000.00 ",Legal Aid Payment Lower Crime
MINISTRY OF JUSTICE,LAA,26/08/2015,Lower Crime,LEGAL AID FUND,BLACKWELLS,141322837,"31,000.00 ",Legal Aid Payment Lower Crime
MINISTRY OF JUSTICE,LAA,26/08/2015,Lower Crime,LEGAL AID FUND,RODNEY WARREN & CO LTD,141322950,"31,000.00 ",Legal Aid Payment Lower Crime
MINISTRY OF JUSTICE,LAA,26/08/2015,Higher Crime,LEGAL AID FUND,ANURAG MOHINDRU,141272102,"31,011.08 ",Legal Aid Payment Higher Crime
MINISTRY OF JUSTICE,LAA,19/08/2015,Legal Help,LEGAL AID FUND,STEPHENSONS SOLICITORS LLP,141233607,"31,028.40 ",Legal Aid Payment Legal Help
MINISTRY OF JUSTICE,LAA,26/08/2015,Lower Crime,LEGAL AID FUND,EDWARD FAIL BRADSHAW & WATERSON,141323446,"31,085.00 ",Legal Aid Payment Lower Crime
MINISTRY OF JUSTICE,LAA,05/08/2015,Higher Crime,LEGAL AID FUND,BENNETT & CO,141011346,"31,115.58 ",Legal Aid Payment Higher Crime
MINISTRY OF JUSTICE,LAA,26/08/2015,Lower Crime,LEGAL AID FUND,FORBES SOLICITORS,141322904,"31,200.00 ",Legal Aid Payment Lower Crime
MINISTRY OF JUSTICE,LAA,12/08/2015,Higher Crime,LEGAL AID FUND,MCCORMACKS LAW-ADVOCATE,141126587,"31,205.69 ",Legal Aid Payment Higher Crime
MINISTRY OF JUSTICE,LAA,19/08/2015,Higher Crime,LEGAL AID FUND,EWINGS & CO,141192811,"31,263.33 ",Legal Aid Payment Higher Crime
MINISTRY OF JUSTICE,LAA,26/08/2015,Lower Crime,LEGAL AID FUND,MOWBRAY WOODWARDS LTD,141323048,"31,300.00 ",Legal Aid Payment Lower Crime
MINISTRY OF JUSTICE,LAA,26/08/2015,Civil Representation,LEGAL AID FUND,FAMILY LAW LTD,141335133,"31,349.87 ",Legal Aid Payment Civil Representation
MINISTRY OF JUSTICE,LAA,19/08/2015,Higher Crime,LEGAL AID FUND,JONATHAN D SIMPSON,141220999,"31,354.51 ",Legal Aid Payment Higher Crime
MINISTRY OF JUSTICE,LAA,19/08/2015,Higher Crime,LEGAL AID FUND,ABV SOLICITORS,141220976,"31,385.38 ",Legal Aid Payment Higher Crime
MINISTRY OF JUSTICE,LAA,26/08/2015,Lower Crime,LEGAL AID FUND,INGRAMS SOLICITORS,141322862,"31,400.00 ",Legal Aid Payment Lower Crime
MINISTRY OF JUSTICE,LAA,26/08/2015,Lower Crime,LEGAL AID FUND,CARTWRIGHT KING SOLICITORS,141323863,"31,424.00 ",Legal Aid Payment Lower Crime
MINISTRY OF JUSTICE,LAA,05/08/2015,Higher Crime,LEGAL AID FUND,NICHOLAS M PAUL,141012192,"31,479.89 ",Legal Aid Payment Higher Crime
MINISTRY OF JUSTICE,LAA,26/08/2015,Lower Crime,LEGAL AID FUND,BISHOP & LIGHT SOLICITORS [0C715B],141322968,"31,500.00 ",Legal Aid Payment Lower Crime
MINISTRY OF JUSTICE,LAA,26/08/2015,Higher Crime,LEGAL AID FUND,JONATHAN WHITFIELD QC,141287838,"31,535.80 ",Legal Aid Payment Higher Crime
MINISTRY OF JUSTICE,LAA,26/08/2015,Lower Crime,LEGAL AID FUND,KEMPS,141323586,"31,576.00 ",Legal Aid Payment Lower Crime
MINISTRY OF JUSTICE,LAA,26/08/2015,Legal Help,LEGAL AID FUND,IMMIGRATION ADVICE SERVICE,141335026,"31,613.00 ",Legal Aid Payment Legal Help
MINISTRY OF JUSTICE,LAA,26/08/2015,Higher Crime,LEGAL AID FUND,BRIAN R STORK,141256478,"31,617.84 ",Legal Aid Payment Higher Crime
MINISTRY OF JUSTICE,LAA,26/08/2015,Higher Crime,LEGAL AID FUND,TRISTIAN P M T CHAIZE,141299943,"31,617.84 ",Legal Aid Payment Higher Crime
MINISTRY OF JUSTICE,LAA,26/08/2015,Legal Help,LEGAL AID FUND,WIMBLEDON SOLICITORS,141335874,"31,642.00 ",Legal Aid Payment Legal Help
MINISTRY OF JUSTICE,LAA,05/08/2015,Higher Crime,LEGAL AID FUND,VICTOR CLIFFORD SOLICITORS,141082925,"31,666.60 ",Legal Aid Payment Higher Crime
MINISTRY OF JUSTICE,LAA,25/08/2015,Higher Crime,LEGAL AID FUND,GREGORY T JOHNSON,141054223,"31,697.78 ",Legal Aid Payment Higher Crime
MINISTRY OF JUSTICE,LAA,26/08/2015,Higher Crime,LEGAL AID FUND,MARY MONSON SOLICITORS,141325008,"31,720.63 ",Legal Aid Payment Higher Crime
MINISTRY OF JUSTICE,LAA,26/08/2015,Legal Help,LEGAL AID FUND,WOLTON & CO,141322017,"31,721.00 ",Legal Aid Payment Legal Help
MINISTRY OF JUSTICE,LAA,26/08/2015,Lower Crime,LEGAL AID FUND,REEDS SOLICITORS LTD,141324041,"31,750.00 ",Legal Aid Payment Lower Crime
MINISTRY OF JUSTICE,LAA,12/08/2015,Civil Representation,LEGAL AID FUND,ANTHONY MORRIS LTD,141122169,"31,770.00 ",Legal Aid Payment Civil Representation
MINISTRY OF JUSTICE,LAA,19/08/2015,Legal Help,LEGAL AID FUND,DIRECT HELP & ADVICE LTD,141233444,"31,879.68 ",Legal Aid Payment Legal Help
MINISTRY OF JUSTICE,LAA,26/08/2015,Lower Crime,LEGAL AID FUND,MURRAYS PARTNERSHIP,141323435,"31,956.00 ",Legal Aid Payment Lower Crime
MINISTRY OF JUSTICE,LAA,26/08/2015,Lower Crime,LEGAL AID FUND,BOND JOSEPH,141323674,"31,976.00 ",Legal Aid Payment Lower Crime
MINISTRY OF JUSTICE,LAA,26/08/2015,Lower Crime,LEGAL AID FUND,MORGAN CULLEN BALL LTD,141324040,"31,988.00 ",Legal Aid Payment Lower Crime
MINISTRY OF JUSTICE,LAA,26/08/2015,Lower Crime,LEGAL AID FUND,WAINWRIGHT & CUMMINS LLP,141322731,"32,000.00 ",Legal Aid Payment Lower Crime
MINISTRY OF JUSTICE,LAA,26/08/2015,Lower Crime,LEGAL AID FUND,BULLIVANT LAW LTD,141322615,"32,000.00 ",Legal Aid Payment Lower Crime
MINISTRY OF JUSTICE,LAA,19/08/2015,Civil Representation,LEGAL AID FUND,GOODWINS,139806716,"32,043.30 ",Legal Aid Payment Civil Representation
MINISTRY OF JUSTICE,LAA,26/08/2015,Higher Crime,LEGAL AID FUND,JONATHAN P ROSE,141325724,"32,045.77 ",Legal Aid Payment Higher Crime
MINISTRY OF JUSTICE,LAA,26/08/2015,Lower Crime,LEGAL AID FUND,ROBERTSON'S SOLICITORS,141322829,"32,100.00 ",Legal Aid Payment Lower Crime
MINISTRY OF JUSTICE,LAA,05/08/2015,Higher Crime,LEGAL AID FUND,RG LEGAL (ASHTON UNDER LYNE) LTD,141010953,"32,253.43 ",Legal Aid Payment Higher Crime
MINISTRY OF JUSTICE,LAA,19/08/2015,Legal Help,LEGAL AID FUND,THE COMMUNITY LAW PARTNERSHIP LTD,141214694,"32,283.36 ",Legal Aid Payment Legal Help
MINISTRY OF JUSTICE,LAA,19/08/2015,Civil Representation,LEGAL AID FUND,GOODWINS,138504085,"32,320.09 ",Legal Aid Payment Civil Representation
MINISTRY OF JUSTICE,LAA,26/08/2015,Lower Crime,LEGAL AID FUND,GOLDSTONES SOLICITORS LTD,141322492,"32,400.00 ",Legal Aid Payment Lower Crime
MINISTRY OF JUSTICE,LAA,05/08/2015,Civil Representation,LEGAL AID FUND,PAUL M STOREY QC,141047889,"32,482.08 ",Legal Aid Payment Civil Representation
MINISTRY OF JUSTICE,LAA,26/08/2015,Lower Crime,LEGAL AID FUND,JAMES MURRAY SOLICITORS,141323466,"32,501.00 ",Legal Aid Payment Lower Crime
MINISTRY OF JUSTICE,LAA,26/08/2015,Lower Crime,LEGAL AID FUND,KYLE LEGAL PRACTICE,141323834,"32,547.00 ",Legal Aid Payment Lower Crime
MINISTRY OF JUSTICE,LAA,26/08/2015,Civil Representation,LEGAL AID FUND,SYMES BAINS BROOMER,141261611,"32,586.36 ",Legal Aid Payment Civil Representation
MINISTRY OF JUSTICE,LAA,26/08/2015,Legal Help,LEGAL AID FUND,SUTOVIC & HARTIGAN,141321835,"32,600.00 ",Legal Aid Payment Legal Help
MINISTRY OF JUSTICE,LAA,26/08/2015,Legal Help,LEGAL AID FUND,CROWN HOUSE SOLICITORS,141337002,"32,602.00 ",Legal Aid Payment Legal Help
MINISTRY OF JUSTICE,LAA,19/08/2015,Higher Crime,LEGAL AID FUND,RILEY HAYES & CO,141193868,"32,713.08 ",Legal Aid Payment Higher Crime
MINISTRY OF JUSTICE,LAA,19/08/2015,Civil Representation,LEGAL AID FUND,JEFFREY R NORIE-MILLER,141210289,"32,782.50 ",Legal Aid Payment Civil Representation
MINISTRY OF JUSTICE,LAA,12/08/2015,Higher Crime,LEGAL AID FUND,JOHN F LENNON,141154188,"32,816.51 ",Legal Aid Payment Higher Crime
MINISTRY OF JUSTICE,LAA,26/08/2015,Lower Crime,LEGAL AID FUND,G T STEWART SOLICITORS,141323914,"32,886.00 ",Legal Aid Payment Lower Crime
MINISTRY OF JUSTICE,LAA,26/08/2015,Lower Crime,LEGAL AID FUND,SMITH & DAWSON,141323071,"32,900.00 ",Legal Aid Payment Lower Crime
MINISTRY OF JUSTICE,LAA,19/08/2015,Higher Crime,LEGAL AID FUND,BDH SOLICITORS,141192362,"32,988.67 ",Legal Aid Payment Higher Crime
MINISTRY OF JUSTICE,LAA,26/08/2015,Lower Crime,LEGAL AID FUND,TUCKERS SOLICITORS LLP,141322715,"33,000.00 ",Legal Aid Payment Lower Crime
MINISTRY OF JUSTICE,LAA,12/08/2015,Civil Representation,LEGAL AID FUND,MARK CHALONER,141130961,"33,053.28 ",Legal Aid Payment Civil Representation
MINISTRY OF JUSTICE,LAA,26/08/2015,Lower Crime,LEGAL AID FUND,WALDRONS SOLICITORS,141323897,"33,060.00 ",Legal Aid Payment Lower Crime
MINISTRY OF JUSTICE,LAA,19/08/2015,Civil Representation,LEGAL AID FUND,BELL LAMB & JOYNSON,141181079,"33,069.41 ",Legal Aid Payment Civil Representation
MINISTRY OF JUSTICE,LAA,05/08/2015,Civil Representation,LEGAL AID FUND,CHURCHERS,141017237,"33,098.37 ",Legal Aid Payment Civil Representation
MINISTRY OF JUSTICE,LAA,26/08/2015,Legal Help,LEGAL AID FUND,AASKELLS SOLICITORS & ADVOCATES,141322255,"33,134.00 ",Legal Aid Payment Legal Help
MINISTRY OF JUSTICE,LAA,05/08/2015,Higher Crime,LEGAL AID FUND,KELLY L SCRIVENER,141081812,"33,140.14 ",Legal Aid Payment Higher Crime
MINISTRY OF JUSTICE,LAA,12/08/2015,Higher Crime,LEGAL AID FUND,ALI R RAFATI,141113258,"33,140.14 ",Legal Aid Payment Higher Crime
MINISTRY OF JUSTICE,LAA,19/08/2015,Higher Crime,LEGAL AID FUND,DAVID R SCUTT,141176392,"33,140.14 ",Legal Aid Payment Higher Crime
MINISTRY OF JUSTICE,LAA,26/08/2015,Lower Crime,LEGAL AID FUND,THE CASTLE PARTNERSHIP,141322963,"33,200.00 ",Legal Aid Payment Lower Crime
MINISTRY OF JUSTICE,LAA,12/08/2015,Higher Crime,LEGAL AID FUND,RICHARD P SUTTON QC,141140590,"33,239.81 ",Legal Aid Payment Higher Crime
MINISTRY OF JUSTICE,LAA,26/08/2015,Lower Crime,LEGAL AID FUND,SMITH PARTNERSHIP,141322545,"33,300.00 ",Legal Aid Payment Lower Crime
MINISTRY OF JUSTICE,LAA,26/08/2015,Lower Crime,LEGAL AID FUND,HENRY HYAMS,141322850,"33,300.00 ",Legal Aid Payment Lower Crime
MINISTRY OF JUSTICE,LAA,26/08/2015,Lower Crime,LEGAL AID FUND,STEVEN YOUNG & CO,141323759,"33,464.00 ",Legal Aid Payment Lower Crime
MINISTRY OF JUSTICE,LAA,26/08/2015,Lower Crime,LEGAL AID FUND,KENT DEFENCE,141323144,"33,500.00 ",Legal Aid Payment Lower Crime
MINISTRY OF JUSTICE,LAA,26/08/2015,Lower Crime,LEGAL AID FUND,CJH GREENHILL COOPER SOLICITORS,141322547,"33,500.00 ",Legal Aid Payment Lower Crime
MINISTRY OF JUSTICE,LAA,05/08/2015,Higher Crime,LEGAL AID FUND,ROWE SPARKES SOLICITORS LTD,141011232,"33,507.70 ",Legal Aid Payment Higher Crime
MINISTRY OF JUSTICE,LAA,19/08/2015,Higher Crime,LEGAL AID FUND,RACHEL R V A BRAND QC,141219550,"33,537.92 ",Legal Aid Payment Higher Crime
MINISTRY OF JUSTICE,LAA,19/08/2015,Higher Crime,LEGAL AID FUND,CARTWRIGHT KING SOLICITORS,141207552,"33,543.90 ",Legal Aid Payment Higher Crime
MINISTRY OF JUSTICE,LAA,19/08/2015,Higher Crime,LEGAL AID FUND,ALEXANDER BENNETT,141193879,"33,575.66 ",Legal Aid Payment Higher Crime
MINISTRY OF JUSTICE,LAA,26/08/2015,Lower Crime,LEGAL AID FUND,DAVIES & JONES SOLICITORS,141322500,"33,600.00 ",Legal Aid Payment Lower Crime
MINISTRY OF JUSTICE,LAA,26/08/2015,Higher Crime,LEGAL AID FUND,LEWIS NEDAS & CO,141256868,"33,618.20 ",Legal Aid Payment Higher Crime
MINISTRY OF JUSTICE,LAA,12/08/2015,Higher Crime,LEGAL AID FUND,FARADAYS SOLICITORS LTD,141099953,"33,623.66 ",Legal Aid Payment Higher Crime
MINISTRY OF JUSTICE,LAA,26/08/2015,Legal Help,LEGAL AID FUND,BEN HOARE BELL LLP,141321947,"33,700.00 ",Legal Aid Payment Legal Help
MINISTRY OF JUSTICE,LAA,26/08/2015,Lower Crime,LEGAL AID FUND,PETHERBRIDGE BASSRA SOLICITORS LTD,141323545,"33,734.00 ",Legal Aid Payment Lower Crime
MINISTRY OF JUSTICE,LAA,26/08/2015,Lower Crime,LEGAL AID FUND,G T STEWART SOLICITORS,141323909,"33,785.00 ",Legal Aid Payment Lower Crime
MINISTRY OF JUSTICE,LAA,26/08/2015,Lower Crime,LEGAL AID FUND,TEESSIDE LAW LTD,141324075,"33,818.00 ",Legal Aid Payment Lower Crime
MINISTRY OF JUSTICE,LAA,26/08/2015,Lower Crime,LEGAL AID FUND,HINE SOLICITORS,141323915,"33,825.00 ",Legal Aid Payment Lower Crime
MINISTRY OF JUSTICE,LAA,12/08/2015,Civil Representation,LEGAL AID FUND,BIRCHALL BLACKBURN SOLICITORS,141167599,"33,825.31 ",Legal Aid Payment Civil Representation
MINISTRY OF JUSTICE,LAA,19/08/2015,Higher Crime,LEGAL AID FUND,BARK & CO,141207770,"33,867.86 ",Legal Aid Payment Higher Crime
MINISTRY OF JUSTICE,LAA,05/08/2015,Higher Crime,LEGAL AID FUND,STOKOE PARTNERSHIP,141027450,"33,938.99 ",Legal Aid Payment Higher Crime
MINISTRY OF JUSTICE,LAA,12/08/2015,Higher Crime,LEGAL AID FUND,BLOCK ASSOCIATES LTD,141127606,"33,938.99 ",Legal Aid Payment Higher Crime
MINISTRY OF JUSTICE,LAA,12/08/2015,Higher Crime,LEGAL AID FUND,COCKS LLOYD,141127381,"33,997.51 ",Legal Aid Payment Higher Crime
MINISTRY OF JUSTICE,LAA,26/08/2015,Lower Crime,LEGAL AID FUND,FORBES SOLICITORS,141322906,"34,000.00 ",Legal Aid Payment Lower Crime
MINISTRY OF JUSTICE,LAA,26/08/2015,Lower Crime,LEGAL AID FUND,ROY FOREMAN & CO SOLICITORS,141322848,"34,000.00 ",Legal Aid Payment Lower Crime
MINISTRY OF JUSTICE,LAA,19/08/2015,Higher Crime,LEGAL AID FUND,ALSTERS KELLEY LLP,141193645,"34,059.70 ",Legal Aid Payment Higher Crime
MINISTRY OF JUSTICE,LAA,26/08/2015,Lower Crime,LEGAL AID FUND,EBR ATTRIDGE LLP,141322643,"34,200.00 ",Legal Aid Payment Lower Crime
MINISTRY OF JUSTICE,LAA,19/08/2015,Higher Crime,LEGAL AID FUND,KEMI FAPOHUNDA,141241864,"34,229.16 ",Legal Aid Payment Higher Crime
MINISTRY OF JUSTICE,LAA,05/08/2015,Higher Crime,LEGAL AID FUND,KELLOCKS-ADVOCATE,141011122,"34,251.43 ",Legal Aid Payment Higher Crime
MINISTRY OF JUSTICE,LAA,26/08/2015,Lower Crime,LEGAL AID FUND,J D SOLICITORS,141323883,"34,264.00 ",Legal Aid Payment Lower Crime
MINISTRY OF JUSTICE,LAA,26/08/2015,Lower Crime,LEGAL AID FUND,GHP LEGAL,141322506,"34,300.00 ",Legal Aid Payment Lower Crime
MINISTRY OF JUSTICE,LAA,26/08/2015,Lower Crime,LEGAL AID FUND,GUNEY CLARK & RYAN LTD CO,141323408,"34,305.00 ",Legal Aid Payment Lower Crime
MINISTRY OF JUSTICE,LAA,26/08/2015,Lower Crime,LEGAL AID FUND,G T STEWART SOLICITORS,141323910,"34,315.00 ",Legal Aid Payment Lower Crime
MINISTRY OF JUSTICE,LAA,26/08/2015,Higher Crime,LEGAL AID FUND,COBLEYS LLP,141301505,"34,339.12 ",Legal Aid Payment Higher Crime
MINISTRY OF JUSTICE,LAA,26/08/2015,Lower Crime,LEGAL AID FUND,HINE SOLICITORS,141323920,"34,351.00 ",Legal Aid Payment Lower Crime
MINISTRY OF JUSTICE,LAA,12/08/2015,Higher Crime,LEGAL AID FUND,VIRDEES SOLICITORS LTD,141127563,"34,426.36 ",Legal Aid Payment Higher Crime
MINISTRY OF JUSTICE,LAA,26/08/2015,Higher Crime,LEGAL AID FUND,PHILIP J SINCLAIR,141256502,"34,433.52 ",Legal Aid Payment Higher Crime
MINISTRY OF JUSTICE,LAA,26/08/2015,Lower Crime,LEGAL AID FUND,SWAIN & CO SOLICITORS LLP,141322981,"34,500.00 ",Legal Aid Payment Lower Crime
MINISTRY OF JUSTICE,LAA,26/08/2015,Lower Crime,LEGAL AID FUND,HINE SOLICITORS,141323918,"34,597.00 ",Legal Aid Payment Lower Crime
MINISTRY OF JUSTICE,LAA,26/08/2015,Legal Help,LEGAL AID FUND,DH LAW LTD,141335693,"34,639.00 ",Legal Aid Payment Legal Help
MINISTRY OF JUSTICE,LAA,12/08/2015,Higher Crime,LEGAL AID FUND,GRAHAME H JAMES,141161469,"34,740.72 ",Legal Aid Payment Higher Crime
MINISTRY OF JUSTICE,LAA,26/08/2015,Higher Crime,LEGAL AID FUND,SAUL HERMAN,141257504,"34,857.58 ",Legal Aid Payment Higher Crime
MINISTRY OF JUSTICE,LAA,19/08/2015,Higher Crime,LEGAL AID FUND,THOMAS W P STERN,141176016,"34,996.32 ",Legal Aid Payment Higher Crime
MINISTRY OF JUSTICE,LAA,26/08/2015,Lower Crime,LEGAL AID FUND,POOLE ALCOCK LLP,141322891,"35,000.00 ",Legal Aid Payment Lower Crime
MINISTRY OF JUSTICE,LAA,26/08/2015,Lower Crime,LEGAL AID FUND,LUMB & MACGILL,141322836,"35,000.00 ",Legal Aid Payment Lower Crime
MINISTRY OF JUSTICE,LAA,26/08/2015,Lower Crime,LEGAL AID FUND,OWEN NASH & CO,141323118,"35,000.00 ",Legal Aid Payment Lower Crime
MINISTRY OF JUSTICE,LAA,26/08/2015,Lower Crime,LEGAL AID FUND,BAILEY NICHOLSON GRAYSON,141322613,"35,000.00 ",Legal Aid Payment Lower Crime
MINISTRY OF JUSTICE,LAA,26/08/2015,Lower Crime,LEGAL AID FUND,GEOFFREY FORRESTER & CO,141322778,"35,100.00 ",Legal Aid Payment Lower Crime
MINISTRY OF JUSTICE,LAA,26/08/2015,Higher Crime,LEGAL AID FUND,CATHERINE COLLINS,141293482,"35,148.98 ",Legal Aid Payment Higher Crime
MINISTRY OF JUSTICE,LAA,12/08/2015,Higher Crime,LEGAL AID FUND,STEPHEN M A KAMLISH QC,141099176,"35,282.89 ",Legal Aid Payment Higher Crime
MINISTRY OF JUSTICE,LAA,19/08/2015,Higher Crime,LEGAL AID FUND,EDWARD HAYES LLP,141193134,"35,298.22 ",Legal Aid Payment Higher Crime
MINISTRY OF JUSTICE,LAA,26/08/2015,Lower Crime,LEGAL AID FUND,PHILIP HANBY LTD T/A ANDREW JAY & CO,141323300,"35,303.00 ",Legal Aid Payment Lower Crime
MINISTRY OF JUSTICE,LAA,26/08/2015,Higher Crime,LEGAL AID FUND,MTC & CO SOLICITORS,141272732,"35,315.90 ",Legal Aid Payment Higher Crime
MINISTRY OF JUSTICE,LAA,19/08/2015,Civil Representation,LEGAL AID FUND,HARINDER KAUR,141168290,"35,434.32 ",Legal Aid Payment Civil Representation
MINISTRY OF JUSTICE,LAA,26/08/2015,Lower Crime,LEGAL AID FUND,DJMS SOLICITORS LTD,141323486,"35,463.00 ",Legal Aid Payment Lower Crime
MINISTRY OF JUSTICE,LAA,26/08/2015,Lower Crime,LEGAL AID FUND,DAVID PHILLIPS & PARTNERS,141322659,"35,500.00 ",Legal Aid Payment Lower Crime
MINISTRY OF JUSTICE,LAA,26/08/2015,Civil Representation,LEGAL AID FUND,SMITH PARTNERSHIP,141234536,"35,506.66 ",Legal Aid Payment Civil Representation
MINISTRY OF JUSTICE,LAA,26/08/2015,Legal Help,LEGAL AID FUND,SILLS & BETTERIDGE LLP,141322382,"35,525.00 ",Legal Aid Payment Legal Help
MINISTRY OF JUSTICE,LAA,26/08/2015,Legal Help,LEGAL AID FUND,THALIWAL & CO LTD,141322359,"35,529.00 ",Legal Aid Payment Legal Help
MINISTRY OF JUSTICE,LAA,19/08/2015,Higher Crime,LEGAL AID FUND,DUNCAN LEWIS,141242700,"35,553.84 ",Legal Aid Payment Higher Crime
MINISTRY OF JUSTICE,LAA,05/08/2015,Higher Crime,LEGAL AID FUND,REGINALD S MILLS,141012023,"35,592.18 ",Legal Aid Payment Higher Crime
MINISTRY OF JUSTICE,LAA,26/08/2015,Legal Help,LEGAL AID FUND,GLEDHILL SOLICITORS,141322022,"35,596.00 ",Legal Aid Payment Legal Help
MINISTRY OF JUSTICE,LAA,05/08/2015,Higher Crime,LEGAL AID FUND,NEIL FOLEY & COMPANY,141082318,"35,597.46 ",Legal Aid Payment Higher Crime
MINISTRY OF JUSTICE,LAA,19/08/2015,Higher Crime,LEGAL AID FUND,BARRY J SMITH,141198056,"35,665.32 ",Legal Aid Payment Higher Crime
MINISTRY OF JUSTICE,LAA,19/08/2015,Higher Crime,LEGAL AID FUND,TIMOTHY J SPENCER,141177290,"35,738.41 ",Legal Aid Payment Higher Crime
MINISTRY OF JUSTICE,LAA,26/08/2015,Higher Crime,LEGAL AID FUND,BINDMANS LLP,141256728,"35,746.72 ",Legal Aid Payment Higher Crime
MINISTRY OF JUSTICE,LAA,12/08/2015,Higher Crime,LEGAL AID FUND,WILSON SOLICITORS LLP,141113533,"35,746.72 ",Legal Aid Payment Higher Crime
MINISTRY OF JUSTICE,LAA,26/08/2015,Lower Crime,LEGAL AID FUND,STOCK MORAN & SWALWELL,141322874,"35,900.00 ",Legal Aid Payment Lower Crime
MINISTRY OF JUSTICE,LAA,05/08/2015,Higher Crime,LEGAL AID FUND,MIDDLEWEEKS,141012607,"35,957.90 ",Legal Aid Payment Higher Crime
MINISTRY OF JUSTICE,LAA,26/08/2015,Lower Crime,LEGAL AID FUND,ALLEN HOOLE SOLICITORS ,141323055,"36,000.00 ",Legal Aid Payment Lower Crime
MINISTRY OF JUSTICE,LAA,25/08/2015,Higher Crime,LEGAL AID FUND,RICHARD GRIFFITHS & CO,141054525,"36,063.21 ",Legal Aid Payment Higher Crime
MINISTRY OF JUSTICE,LAA,19/08/2015,Higher Crime,LEGAL AID FUND,TRINITY ADVOCATES,141243012,"36,119.56 ",Legal Aid Payment Higher Crime
MINISTRY OF JUSTICE,LAA,19/08/2015,Higher Crime,LEGAL AID FUND,DANNY G MOORE,141176532,"36,151.92 ",Legal Aid Payment Higher Crime
MINISTRY OF JUSTICE,LAA,26/08/2015,Legal Help,LEGAL AID FUND,QUALITY SOLICITORS CMHT,141321995,"36,159.00 ",Legal Aid Payment Legal Help
MINISTRY OF JUSTICE,LAA,19/08/2015,Civil Representation,LEGAL AID FUND,TIMOTHY H SPAIN,141236833,"36,307.50 ",Legal Aid Payment Civil Representation
MINISTRY OF JUSTICE,LAA,12/08/2015,Higher Crime,LEGAL AID FUND,STEPHEN WOOD,141160235,"36,331.20 ",Legal Aid Payment Higher Crime
MINISTRY OF JUSTICE,LAA,19/08/2015,Higher Crime,LEGAL AID FUND,JOHN FOSTER HARRISON,141207369,"36,360.36 ",Legal Aid Payment Higher Crime
MINISTRY OF JUSTICE,LAA,26/08/2015,Legal Help,LEGAL AID FUND,BUTLER & CO,141321804,"36,500.00 ",Legal Aid Payment Legal Help
MINISTRY OF JUSTICE,LAA,12/08/2015,Civil Representation,LEGAL AID FUND,BISCOES,141130938,"36,571.32 ",Legal Aid Payment Civil Representation
MINISTRY OF JUSTICE,LAA,26/08/2015,Lower Crime,LEGAL AID FUND,HARTHILLS,141322811,"36,600.00 ",Legal Aid Payment Lower Crime
MINISTRY OF JUSTICE,LAA,26/08/2015,Lower Crime,LEGAL AID FUND,WILLIAMSONS SOLICITORS LTD,141322860,"36,600.00 ",Legal Aid Payment Lower Crime
MINISTRY OF JUSTICE,LAA,05/08/2015,Higher Crime,LEGAL AID FUND,ADRIAN M WATERMAN QC,141025983,"36,650.65 ",Legal Aid Payment Higher Crime
MINISTRY OF JUSTICE,LAA,12/08/2015,Civil Representation,LEGAL AID FUND,PAUL M STOREY QC,141147451,"36,676.80 ",Legal Aid Payment Civil Representation
MINISTRY OF JUSTICE,LAA,26/08/2015,Lower Crime,LEGAL AID FUND,IAN HENERY LTD,141323809,"36,699.00 ",Legal Aid Payment Lower Crime
MINISTRY OF JUSTICE,LAA,26/08/2015,Higher Crime,LEGAL AID FUND,ACHOM & PARTNERS,141272832,"36,713.51 ",Legal Aid Payment Higher Crime
MINISTRY OF JUSTICE,LAA,26/08/2015,Lower Crime,LEGAL AID FUND,GRAYSON WILLIS BENNETT,141323531,"36,855.00 ",Legal Aid Payment Lower Crime
MINISTRY OF JUSTICE,LAA,12/08/2015,Higher Crime,LEGAL AID FUND,COURTENAY GRIFFITHS QC,141112860,"36,867.35 ",Legal Aid Payment Higher Crime
MINISTRY OF JUSTICE,LAA,12/08/2015,Higher Crime,LEGAL AID FUND,JAMES T N SCOBIE QC,141112687,"36,867.35 ",Legal Aid Payment Higher Crime
MINISTRY OF JUSTICE,LAA,19/08/2015,Civil Representation,LEGAL AID FUND,RUTH S M HENKE QC,141246617,"36,936.00 ",Legal Aid Payment Civil Representation
MINISTRY OF JUSTICE,LAA,19/08/2015,Higher Crime,LEGAL AID FUND,BARK & CO,141192944,"36,969.65 ",Legal Aid Payment Higher Crime
MINISTRY OF JUSTICE,LAA,19/08/2015,Higher Crime,LEGAL AID FUND,THE RINGROSE LAW,141243075,"36,969.65 ",Legal Aid Payment Higher Crime
MINISTRY OF JUSTICE,LAA,19/08/2015,Higher Crime,LEGAL AID FUND,BARK & CO,141207768,"36,975.27 ",Legal Aid Payment Higher Crime
MINISTRY OF JUSTICE,LAA,26/08/2015,Civil Representation,LEGAL AID FUND,ZOE BRUCE,3000000318790050,"37,067.06 ",Legal Aid Payment Civil Representation
MINISTRY OF JUSTICE,LAA,05/08/2015,Civil Representation,LEGAL AID FUND,E CATRIN JOHN,141047611,"37,179.00 ",Legal Aid Payment Civil Representation
MINISTRY OF JUSTICE,LAA,12/08/2015,Higher Crime,LEGAL AID FUND,SMITH PARTNERSHIP,141159715,"37,228.01 ",Legal Aid Payment Higher Crime
MINISTRY OF JUSTICE,LAA,26/08/2015,Higher Crime,LEGAL AID FUND,BARK & CO,141325418,"37,296.80 ",Legal Aid Payment Higher Crime
MINISTRY OF JUSTICE,LAA,26/08/2015,Legal Help,LEGAL AID FUND,NICHOLAS ARMSTRONG,141313339,"37,362.56 ",Legal Aid Payment Legal Help
MINISTRY OF JUSTICE,LAA,12/08/2015,Civil Representation,LEGAL AID FUND,BRENDAN FLEMING SOLICITORS,141147447,"37,365.91 ",Legal Aid Payment Civil Representation
MINISTRY OF JUSTICE,LAA,26/08/2015,Lower Crime,LEGAL AID FUND,HARRIS CUFFARO & NICHOLS,141322569,"37,400.00 ",Legal Aid Payment Lower Crime
MINISTRY OF JUSTICE,LAA,26/08/2015,Lower Crime,LEGAL AID FUND,BIRNBERG PEIRCE LTD,141322700,"37,500.00 ",Legal Aid Payment Lower Crime
MINISTRY OF JUSTICE,LAA,26/08/2015,Lower Crime,LEGAL AID FUND,ROWE SPARKES SOLICITORS LTD,141322986,"37,500.00 ",Legal Aid Payment Lower Crime
MINISTRY OF JUSTICE,LAA,19/08/2015,Higher Crime,LEGAL AID FUND,IRWIN MITCHELL LLP,141193146,"37,602.02 ",Legal Aid Payment Higher Crime
MINISTRY OF JUSTICE,LAA,26/08/2015,Higher Crime,LEGAL AID FUND,JOHNSON ASTILLS,141272625,"37,637.18 ",Legal Aid Payment Higher Crime
MINISTRY OF JUSTICE,LAA,12/08/2015,Civil Representation,LEGAL AID FUND,SUSAN A QUINN,141144238,"37,670.40 ",Legal Aid Payment Civil Representation
MINISTRY OF JUSTICE,LAA,12/08/2015,Higher Crime,LEGAL AID FUND,GORDON COLE QC,141127564,"37,705.32 ",Legal Aid Payment Higher Crime
MINISTRY OF JUSTICE,LAA,19/08/2015,Higher Crime,LEGAL AID FUND,NIGEL J POWER QC,141241867,"37,767.61 ",Legal Aid Payment Higher Crime
MINISTRY OF JUSTICE,LAA,19/08/2015,Civil Representation,LEGAL AID FUND,PHILCOX GRAY & CO,141198632,"37,790.25 ",Legal Aid Payment Civil Representation
MINISTRY OF JUSTICE,LAA,12/08/2015,Higher Crime,LEGAL AID FUND,CARTWRIGHT KING SOLICITORS,141099089,"37,791.76 ",Legal Aid Payment Higher Crime
MINISTRY OF JUSTICE,LAA,19/08/2015,Higher Crime,LEGAL AID FUND,LEVINS SOLICITORS,141193628,"37,798.13 ",Legal Aid Payment Higher Crime
MINISTRY OF JUSTICE,LAA,26/08/2015,Higher Crime,LEGAL AID FUND,JEREMY P WAINWRIGHT,141326041,"37,901.35 ",Legal Aid Payment Higher Crime
MINISTRY OF JUSTICE,LAA,26/08/2015,Lower Crime,LEGAL AID FUND,SEDGWICK CHUDLEIGH MCKENN SOLICITORS,141323195,"37,917.00 ",Legal Aid Payment Lower Crime
MINISTRY OF JUSTICE,LAA,26/08/2015,Lower Crime,LEGAL AID FUND,JOHN DELANEY & CO SOLICITORS,141322854,"38,000.00 ",Legal Aid Payment Lower Crime
MINISTRY OF JUSTICE,LAA,05/08/2015,Higher Crime,LEGAL AID FUND,WISEMAN LEE LLP,141082075,"38,062.99 ",Legal Aid Payment Higher Crime
MINISTRY OF JUSTICE,LAA,26/08/2015,Higher Crime,LEGAL AID FUND,MESSRS WATERFORDS SOLICITORS,141272724,"38,062.99 ",Legal Aid Payment Higher Crime
MINISTRY OF JUSTICE,LAA,19/08/2015,Higher Crime,LEGAL AID FUND,ANDREW JEFFERIES QC,141219728,"38,088.01 ",Legal Aid Payment Higher Crime
MINISTRY OF JUSTICE,LAA,05/08/2015,Civil Representation,LEGAL AID FUND,JANE E CROWLEY QC,141047398,"38,090.97 ",Legal Aid Payment Civil Representation
MINISTRY OF JUSTICE,LAA,05/08/2015,Civil Representation,LEGAL AID FUND,HENRY HYAMS,141072831,"38,170.39 ",Legal Aid Payment Civil Representation
MINISTRY OF JUSTICE,LAA,26/08/2015,Higher Crime,LEGAL AID FUND,FREEMANS SOLICITORS.,141300878,"38,180.48 ",Legal Aid Payment Higher Crime
MINISTRY OF JUSTICE,LAA,26/08/2015,Legal Help,LEGAL AID FUND,CONFREYS,141322120,"38,244.00 ",Legal Aid Payment Legal Help
MINISTRY OF JUSTICE,LAA,26/08/2015,Lower Crime,LEGAL AID FUND,SCOTT-MONCRIEFF & ASSOCIATES LLP,141322697,"38,300.00 ",Legal Aid Payment Lower Crime
MINISTRY OF JUSTICE,LAA,12/08/2015,Higher Crime,LEGAL AID FUND,JOHN FOSTER HARRISON,141127074,"38,358.48 ",Legal Aid Payment Higher Crime
MINISTRY OF JUSTICE,LAA,12/08/2015,Higher Crime,LEGAL AID FUND,DARBYS,141159696,"38,395.00 ",Legal Aid Payment Higher Crime
MINISTRY OF JUSTICE,LAA,26/08/2015,Legal Help,LEGAL AID FUND,QS JACKSON CANTER LTD,141322213,"38,492.00 ",Legal Aid Payment Legal Help
MINISTRY OF JUSTICE,LAA,12/08/2015,Higher Crime,LEGAL AID FUND,NOBLE SOLICITORS-ADVOCATE,141140570,"38,556.72 ",Legal Aid Payment Higher Crime
MINISTRY OF JUSTICE,LAA,05/08/2015,Higher Crime,LEGAL AID FUND,SHEPHERD HARRIS & CO LTD,141041182,"38,714.75 ",Legal Aid Payment Higher Crime
MINISTRY OF JUSTICE,LAA,26/08/2015,Lower Crime,LEGAL AID FUND,METCALFE COPEMAN & PETTEFAR,141322597,"38,800.00 ",Legal Aid Payment Lower Crime
MINISTRY OF JUSTICE,LAA,12/08/2015,Higher Crime,LEGAL AID FUND,MICHAEL C DUCK QC,141139521,"38,864.04 ",Legal Aid Payment Higher Crime
MINISTRY OF JUSTICE,LAA,05/08/2015,Higher Crime,LEGAL AID FUND,WILLIAMSON & SODEN,141083054,"39,010.92 ",Legal Aid Payment Higher Crime
MINISTRY OF JUSTICE,LAA,19/08/2015,Legal Help,LEGAL AID FUND,SHELTER.,141233556,"39,053.71 ",Legal Aid Payment Legal Help
MINISTRY OF JUSTICE,LAA,26/08/2015,Higher Crime,LEGAL AID FUND,TUCKERS SOLICITORS LLP,141272718,"39,061.18 ",Legal Aid Payment Higher Crime
MINISTRY OF JUSTICE,LAA,26/08/2015,Lower Crime,LEGAL AID FUND,NORRIE WAITE & SLATER,141322814,"39,100.00 ",Legal Aid Payment Lower Crime
MINISTRY OF JUSTICE,LAA,26/08/2015,Higher Crime,LEGAL AID FUND,SBG SOLICITORS,141256341,"39,105.08 ",Legal Aid Payment Higher Crime
MINISTRY OF JUSTICE,LAA,19/08/2015,Civil Representation,LEGAL AID FUND,JEREMY P WESTON,3000000315100017,"39,171.60 ",Legal Aid Payment Civil Representation
MINISTRY OF JUSTICE,LAA,05/08/2015,Higher Crime,LEGAL AID FUND,J D SPICER ZEB,141026337,"39,255.70 ",Legal Aid Payment Higher Crime
MINISTRY OF JUSTICE,LAA,12/08/2015,Higher Crime,LEGAL AID FUND,ANDREW S J ALTY,141100079,"39,361.06 ",Legal Aid Payment Higher Crime
MINISTRY OF JUSTICE,LAA,26/08/2015,Higher Crime,LEGAL AID FUND,MCMILLAN WILLIAMS SOLICITORS LTD,141287124,"39,362.13 ",Legal Aid Payment Higher Crime
MINISTRY OF JUSTICE,LAA,26/08/2015,Higher Crime,LEGAL AID FUND,WHITWORTH & GREEN SOLICITORS LTD,141271209,"39,444.22 ",Legal Aid Payment Higher Crime
MINISTRY OF JUSTICE,LAA,26/08/2015,Lower Crime,LEGAL AID FUND,RILEY HAYES & CO,141323137,"39,500.00 ",Legal Aid Payment Lower Crime
MINISTRY OF JUSTICE,LAA,26/08/2015,Lower Crime,LEGAL AID FUND,ANGELA PORTER SOLICITORS,141323723,"39,517.00 ",Legal Aid Payment Lower Crime
MINISTRY OF JUSTICE,LAA,26/08/2015,Lower Crime,LEGAL AID FUND,FISHER COWE,141323326,"39,582.00 ",Legal Aid Payment Lower Crime
MINISTRY OF JUSTICE,LAA,26/08/2015,Lower Crime,LEGAL AID FUND,BOOTS STARKE GOACHER SOLICITORS,141323690,"39,601.00 ",Legal Aid Payment Lower Crime
MINISTRY OF JUSTICE,LAA,26/08/2015,Lower Crime,LEGAL AID FUND,TILLY BAILEY & IRVINE LLP,141322789,"39,700.00 ",Legal Aid Payment Lower Crime
MINISTRY OF JUSTICE,LAA,19/08/2015,Civil Representation,LEGAL AID FUND,FLG LTD,141168263,"39,712.47 ",Legal Aid Payment Civil Representation
MINISTRY OF JUSTICE,LAA,26/08/2015,Lower Crime,LEGAL AID FUND,DUNCAN LEWIS,141323403,"39,854.00 ",Legal Aid Payment Lower Crime
MINISTRY OF JUSTICE,LAA,26/08/2015,Lower Crime,LEGAL AID FUND,LLOYD & ROWE,141322498,"40,000.00 ",Legal Aid Payment Lower Crime
MINISTRY OF JUSTICE,LAA,26/08/2015,Lower Crime,LEGAL AID FUND,SUSSEX DEFENCE SOLICITORS,141322976,"40,000.00 ",Legal Aid Payment Lower Crime
MINISTRY OF JUSTICE,LAA,26/08/2015,Lower Crime,LEGAL AID FUND,THE JOHNSON PARTNERSHIP,141323156,"40,000.00 ",Legal Aid Payment Lower Crime
MINISTRY OF JUSTICE,LAA,26/08/2015,Legal Help,LEGAL AID FUND,PARAGON LAW LTD,141321675,"40,000.00 ",Legal Aid Payment Legal Help
MINISTRY OF JUSTICE,LAA,26/08/2015,Lower Crime,LEGAL AID FUND,ROBERT LIZAR,141322936,"40,100.00 ",Legal Aid Payment Lower Crime
MINISTRY OF JUSTICE,LAA,12/08/2015,Higher Crime,LEGAL AID FUND,LOUISE J SWEET,141100166,"40,125.24 ",Legal Aid Payment Higher Crime
MINISTRY OF JUSTICE,LAA,26/08/2015,Higher Crime,LEGAL AID FUND,SAUL HERMAN,141257535,"40,176.55 ",Legal Aid Payment Higher Crime
MINISTRY OF JUSTICE,LAA,05/08/2015,Higher Crime,LEGAL AID FUND,EWINGS & CO,141027107,"40,202.93 ",Legal Aid Payment Higher Crime
MINISTRY OF JUSTICE,LAA,26/08/2015,Lower Crime,LEGAL AID FUND,WELLS BURCOMBE LLP,141323310,"40,301.00 ",Legal Aid Payment Lower Crime
MINISTRY OF JUSTICE,LAA,26/08/2015,Lower Crime,LEGAL AID FUND,VICKERS & CO INC BERRI'S SOLICITORS,141323443,"40,426.00 ",Legal Aid Payment Lower Crime
MINISTRY OF JUSTICE,LAA,26/08/2015,Higher Crime,LEGAL AID FUND,DAVID B MASON,141256265,"40,437.61 ",Legal Aid Payment Higher Crime
MINISTRY OF JUSTICE,LAA,12/08/2015,Higher Crime,LEGAL AID FUND,ABV SOLICITORS,141161087,"40,552.10 ",Legal Aid Payment Higher Crime
MINISTRY OF JUSTICE,LAA,26/08/2015,Lower Crime,LEGAL AID FUND,HASKELL & CO,141323667,"40,573.00 ",Legal Aid Payment Lower Crime
MINISTRY OF JUSTICE,LAA,26/08/2015,Lower Crime,LEGAL AID FUND,KEANEY WHITEHEAD PARTNERSHIP,141323473,"40,813.00 ",Legal Aid Payment Lower Crime
MINISTRY OF JUSTICE,LAA,26/08/2015,Legal Help,LEGAL AID FUND,SWAIN & CO SOLICITORS LLP,141321797,"41,300.00 ",Legal Aid Payment Legal Help
MINISTRY OF JUSTICE,LAA,12/08/2015,Higher Crime,LEGAL AID FUND,BURTON COPELAND LLP,141160911,"41,304.26 ",Legal Aid Payment Higher Crime
MINISTRY OF JUSTICE,LAA,17/08/2015,Civil Representation,LEGAL AID FUND,FRANCES M T OLDHAM,135695693,"41,407.20 ",Legal Aid Payment Civil Representation
MINISTRY OF JUSTICE,LAA,26/08/2015,Legal Help,LEGAL AID FUND,BARNES HARRILD & DYER,141322243,"41,517.00 ",Legal Aid Payment Legal Help
MINISTRY OF JUSTICE,LAA,26/08/2015,Lower Crime,LEGAL AID FUND,THE JOHNSON PARTNERSHIP,141323177,"41,600.00 ",Legal Aid Payment Lower Crime
MINISTRY OF JUSTICE,LAA,05/08/2015,Lower Crime,LEGAL AID FUND,O'GARRA'S SOLICITORS,141072836,"41,602.86 ",Legal Aid Payment Lower Crime
MINISTRY OF JUSTICE,LAA,19/08/2015,Civil Representation,LEGAL AID FUND,PHILCOX GRAY & CO,141144174,"41,607.10 ",Legal Aid Payment Civil Representation
MINISTRY OF JUSTICE,LAA,05/08/2015,Civil Representation,LEGAL AID FUND,DEREK A SWEETING,141018466,"41,670.00 ",Legal Aid Payment Civil Representation
MINISTRY OF JUSTICE,LAA,26/08/2015,Lower Crime,LEGAL AID FUND,ROSS SOLICITORS LTD,141323059,"41,700.00 ",Legal Aid Payment Lower Crime
MINISTRY OF JUSTICE,LAA,26/08/2015,Higher Crime,LEGAL AID FUND,MARTIN S HESLOP QC,141256227,"41,765.16 ",Legal Aid Payment Higher Crime
MINISTRY OF JUSTICE,LAA,26/08/2015,Lower Crime,LEGAL AID FUND,HINE SOLICITORS,141323917,"41,816.00 ",Legal Aid Payment Lower Crime
MINISTRY OF JUSTICE,LAA,26/08/2015,Lower Crime,LEGAL AID FUND,ACA LAW LTD,141323402,"41,843.00 ",Legal Aid Payment Lower Crime
MINISTRY OF JUSTICE,LAA,05/08/2015,Higher Crime,LEGAL AID FUND,SANJEEV M SHARMA,141041570,"41,918.30 ",Legal Aid Payment Higher Crime
MINISTRY OF JUSTICE,LAA,05/08/2015,Civil Representation,LEGAL AID FUND,CHILD LAW PARTNERSHIP LTD,141019262,"41,980.27 ",Legal Aid Payment Civil Representation
MINISTRY OF JUSTICE,LAA,26/08/2015,Legal Help,LEGAL AID FUND,FOUNTAIN SOLICITORS LTD,141321707,"42,000.00 ",Legal Aid Payment Legal Help
MINISTRY OF JUSTICE,LAA,26/08/2015,Lower Crime,LEGAL AID FUND,RUSSELL & RUSSELL SOLICITORS,141323575,"42,050.00 ",Legal Aid Payment Lower Crime
MINISTRY OF JUSTICE,LAA,26/08/2015,Lower Crime,LEGAL AID FUND,LEVY & CO SOLICITORS LLP,141322577,"42,100.00 ",Legal Aid Payment Lower Crime
MINISTRY OF JUSTICE,LAA,19/08/2015,Higher Crime,LEGAL AID FUND,AMOSU ROBINSHAW,141177562,"42,298.80 ",Legal Aid Payment Higher Crime
MINISTRY OF JUSTICE,LAA,26/08/2015,Higher Crime,LEGAL AID FUND,AYOUB  KHAN,141257393,"42,305.64 ",Legal Aid Payment Higher Crime
MINISTRY OF JUSTICE,LAA,26/08/2015,Higher Crime,LEGAL AID FUND,MOHAMMED AMIR RIAZ,141287821,"42,305.64 ",Legal Aid Payment Higher Crime
MINISTRY OF JUSTICE,LAA,26/08/2015,Lower Crime,LEGAL AID FUND,POWELL SPENCER AND PARTNERS,141322624,"42,400.00 ",Legal Aid Payment Lower Crime
MINISTRY OF JUSTICE,LAA,26/08/2015,Higher Crime,LEGAL AID FUND,J D SPICER ZEB,141271641,"42,408.00 ",Legal Aid Payment Higher Crime
MINISTRY OF JUSTICE,LAA,05/08/2015,Higher Crime,LEGAL AID FUND,L P EVANS SOLICITORS,141027027,"42,467.47 ",Legal Aid Payment Higher Crime
MINISTRY OF JUSTICE,LAA,26/08/2015,Higher Crime,LEGAL AID FUND,LHS SOLICITORS LLP,141271652,"42,506.93 ",Legal Aid Payment Higher Crime
MINISTRY OF JUSTICE,LAA,19/08/2015,Higher Crime,LEGAL AID FUND,L P EVANS SOLICITORS,141207960,"42,546.89 ",Legal Aid Payment Higher Crime
MINISTRY OF JUSTICE,LAA,05/08/2015,Higher Crime,LEGAL AID FUND,SEPHTON LEE WILKINSON SOLICITORS,141026727,"42,602.65 ",Legal Aid Payment Higher Crime
MINISTRY OF JUSTICE,LAA,26/08/2015,Lower Crime,LEGAL AID FUND,M B LAW LTD,141323380,"42,659.00 ",Legal Aid Payment Lower Crime
MINISTRY OF JUSTICE,LAA,25/08/2015,Higher Crime,LEGAL AID FUND,BOYLE LEONARD SOLICITORS LTD,141054062,"42,666.60 ",Legal Aid Payment Higher Crime
MINISTRY OF JUSTICE,LAA,05/08/2015,Civil Representation,LEGAL AID FUND,SARA A MANN,141048507,"42,768.00 ",Legal Aid Payment Civil Representation
MINISTRY OF JUSTICE,LAA,26/08/2015,Lower Crime,LEGAL AID FUND,NUMBER ONE LAW LLP,141323821,"43,002.00 ",Legal Aid Payment Lower Crime
MINISTRY OF JUSTICE,LAA,19/08/2015,Legal Help,LEGAL AID FUND,TY ARIAN LTD,141233643,"43,017.70 ",Legal Aid Payment Legal Help
MINISTRY OF JUSTICE,LAA,05/08/2015,Higher Crime,LEGAL AID FUND,MALLOY & BARRY,141082906,"43,028.80 ",Legal Aid Payment Higher Crime
MINISTRY OF JUSTICE,LAA,05/08/2015,Higher Crime,LEGAL AID FUND,KEANEY WHITEHEAD PARTNERSHIP,141012691,"43,028.80 ",Legal Aid Payment Higher Crime
MINISTRY OF JUSTICE,LAA,19/08/2015,Higher Crime,LEGAL AID FUND,SHANAHANS SOLICITORS & ADVOCATES,141177721,"43,028.80 ",Legal Aid Payment Higher Crime
MINISTRY OF JUSTICE,LAA,12/08/2015,Higher Crime,LEGAL AID FUND,RAHMAN RAVELLI SOLICTORS LTD,141113749,"43,028.80 ",Legal Aid Payment Higher Crime
MINISTRY OF JUSTICE,LAA,05/08/2015,Higher Crime,LEGAL AID FUND,SHAUN M SMITH QC,141027437,"43,187.68 ",Legal Aid Payment Higher Crime
MINISTRY OF JUSTICE,LAA,26/08/2015,Lower Crime,LEGAL AID FUND,CRIMINAL DEFENCE SOLICITORS,141322714,"43,200.00 ",Legal Aid Payment Lower Crime
MINISTRY OF JUSTICE,LAA,19/08/2015,Higher Crime,LEGAL AID FUND,WBW SOLICITORS.,141176876,"43,343.47 ",Legal Aid Payment Higher Crime
MINISTRY OF JUSTICE,LAA,26/08/2015,Lower Crime,LEGAL AID FUND,ALLEN HOOLE SOLICITORS [0Q319P],141323043,"43,600.00 ",Legal Aid Payment Lower Crime
MINISTRY OF JUSTICE,LAA,05/08/2015,Civil Representation,LEGAL AID FUND,TUSTAIN JONES & CO,141047876,"43,656.58 ",Legal Aid Payment Civil Representation
MINISTRY OF JUSTICE,LAA,05/08/2015,Civil Representation,LEGAL AID FUND,DENBY & CO SOLICITOR LTD,141002373,"43,661.76 ",Legal Aid Payment Civil Representation
MINISTRY OF JUSTICE,LAA,26/08/2015,Lower Crime,LEGAL AID FUND,VICKERS CHISMAN & WISHLADE,141322763,"43,800.00 ",Legal Aid Payment Lower Crime
MINISTRY OF JUSTICE,LAA,19/08/2015,Civil Representation,LEGAL AID FUND,JACKSON WEST,141180949,"43,856.89 ",Legal Aid Payment Civil Representation
MINISTRY OF JUSTICE,LAA,26/08/2015,Legal Help,LEGAL AID FUND,HUNT & COOMBS LLP,141321856,"43,900.00 ",Legal Aid Payment Legal Help
MINISTRY OF JUSTICE,LAA,26/08/2015,Lower Crime,LEGAL AID FUND,BOBBETTS MACKAN,141323040,"44,000.00 ",Legal Aid Payment Lower Crime
MINISTRY OF JUSTICE,LAA,26/08/2015,Lower Crime,LEGAL AID FUND,BHATIA BEST LTD,141322519,"44,000.00 ",Legal Aid Payment Lower Crime
MINISTRY OF JUSTICE,LAA,26/08/2015,Lower Crime,LEGAL AID FUND,CONNOR ROSS-BROWN SOLICITORS,141323172,"44,000.00 ",Legal Aid Payment Lower Crime
MINISTRY OF JUSTICE,LAA,26/08/2015,Civil Representation,LEGAL AID FUND,JOHN P GODFREY,141261738,"44,182.68 ",Legal Aid Payment Civil Representation
MINISTRY OF JUSTICE,LAA,26/08/2015,Higher Crime,LEGAL AID FUND,STUART MILLER SOLICITORS LTD,141257514,"44,244.71 ",Legal Aid Payment Higher Crime
MINISTRY OF JUSTICE,LAA,26/08/2015,Lower Crime,LEGAL AID FUND,KAIM TODNER SOLICITORS LIMITED,141323368,"44,252.00 ",Legal Aid Payment Lower Crime
MINISTRY OF JUSTICE,LAA,26/08/2015,Higher Crime,LEGAL AID FUND,NARITA BAHRA,141326292,"44,435.46 ",Legal Aid Payment Higher Crime
MINISTRY OF JUSTICE,LAA,12/08/2015,Higher Crime,LEGAL AID FUND,SAUNDERS SOLICITORS LTD,141161581,"44,759.36 ",Legal Aid Payment Higher Crime
MINISTRY OF JUSTICE,LAA,05/08/2015,Higher Crime,LEGAL AID FUND,JEROME LYNCH QC,141081401,"44,764.88 ",Legal Aid Payment Higher Crime
MINISTRY OF JUSTICE,LAA,05/08/2015,Civil Representation,LEGAL AID FUND,NAOMI MARIA MADDERSON,3000000392840017,"44,910.96 ",Legal Aid Payment Civil Representation
MINISTRY OF JUSTICE,LAA,26/08/2015,Lower Crime,LEGAL AID FUND,LAWRENCE & CO,141322712,"45,000.00 ",Legal Aid Payment Lower Crime
MINISTRY OF JUSTICE,LAA,26/08/2015,Lower Crime,LEGAL AID FUND,SONN MACMILLAN WALKER LTD,141322609,"45,000.00 ",Legal Aid Payment Lower Crime
MINISTRY OF JUSTICE,LAA,26/08/2015,Legal Help,LEGAL AID FUND,GUILE NICHOLAS-INC DONALD GALBRAITH & CO,141321771,"45,000.00 ",Legal Aid Payment Legal Help
MINISTRY OF JUSTICE,LAA,26/08/2015,Legal Help,LEGAL AID FUND,BRIGHTON HOUSING TRUST,141335414,"45,009.00 ",Legal Aid Payment Legal Help
MINISTRY OF JUSTICE,LAA,19/08/2015,Higher Crime,LEGAL AID FUND,MARTIN C HOOPER,141220297,"45,019.22 ",Legal Aid Payment Higher Crime
MINISTRY OF JUSTICE,LAA,26/08/2015,Lower Crime,LEGAL AID FUND,GRECH GOODEN SOLICITORS LTD,141323243,"45,038.00 ",Legal Aid Payment Lower Crime
MINISTRY OF JUSTICE,LAA,19/08/2015,Higher Crime,LEGAL AID FUND,TYRONE BELGER,141242574,"45,066.89 ",Legal Aid Payment Higher Crime
MINISTRY OF JUSTICE,LAA,26/08/2015,Lower Crime,LEGAL AID FUND,THE RINGROSE LAW,141323298,"45,186.00 ",Legal Aid Payment Lower Crime
MINISTRY OF JUSTICE,LAA,05/08/2015,Civil Representation,LEGAL AID FUND,JEREMY P WESTON,141074942,"45,272.46 ",Legal Aid Payment Civil Representation
MINISTRY OF JUSTICE,LAA,26/08/2015,Lower Crime,LEGAL AID FUND,G T STEWART SOLICITORS,141323439,"45,276.00 ",Legal Aid Payment Lower Crime
MINISTRY OF JUSTICE,LAA,26/08/2015,Legal Help,LEGAL AID FUND,JOHN FOWLERS LLP,141321712,"45,400.00 ",Legal Aid Payment Legal Help
MINISTRY OF JUSTICE,LAA,26/08/2015,Higher Crime,LEGAL AID FUND,A.M. STRACHAN & CO,141325229,"45,674.04 ",Legal Aid Payment Higher Crime
MINISTRY OF JUSTICE,LAA,26/08/2015,Legal Help,LEGAL AID FUND,COLIN JONES CLARKE & HARTLAND SOLICITORS,141337178,"45,688.00 ",Legal Aid Payment Legal Help
MINISTRY OF JUSTICE,LAA,26/08/2015,Lower Crime,LEGAL AID FUND,LAWTONS,141322563,"45,700.00 ",Legal Aid Payment Lower Crime
MINISTRY OF JUSTICE,LAA,26/08/2015,Legal Help,LEGAL AID FUND,HOWE & CO,141322291,"45,701.00 ",Legal Aid Payment Legal Help
MINISTRY OF JUSTICE,LAA,26/08/2015,Higher Crime,LEGAL AID FUND,DAVID J BARNES,141325758,"45,783.24 ",Legal Aid Payment Higher Crime
MINISTRY OF JUSTICE,LAA,11/08/2015,Civil Representation,LEGAL AID FUND,PENNINGTONS LLP,140073741,"45,795.37 ",Legal Aid Payment Civil Representation
MINISTRY OF JUSTICE,LAA,26/08/2015,Higher Crime,LEGAL AID FUND,JERMAN SAMUELS & PEARSON LLP,141271849,"45,802.19 ",Legal Aid Payment Higher Crime
MINISTRY OF JUSTICE,LAA,19/08/2015,Higher Crime,LEGAL AID FUND,SHAW GRAHAM KERSH,141200660,"45,809.82 ",Legal Aid Payment Higher Crime
MINISTRY OF JUSTICE,LAA,26/08/2015,Civil Representation,LEGAL AID FUND,BURNETTS SOLICITORS,6451535,"46,305.09 ",Legal Aid Payment Civil Representation
MINISTRY OF JUSTICE,LAA,26/08/2015,Lower Crime,LEGAL AID FUND,GEOFF WHITE & CO,141323679,"46,330.00 ",Legal Aid Payment Lower Crime
MINISTRY OF JUSTICE,LAA,26/08/2015,Lower Crime,LEGAL AID FUND,"O'NEILL, WRIGHT & NASH",141323836,"46,471.00 ",Legal Aid Payment Lower Crime
MINISTRY OF JUSTICE,LAA,12/08/2015,Higher Crime,LEGAL AID FUND,JONATHAN A C HIGGS QC,141139670,"46,707.30 ",Legal Aid Payment Higher Crime
MINISTRY OF JUSTICE,LAA,19/08/2015,Higher Crime,LEGAL AID FUND,CHIVERS SOLICITORS,141192991,"46,713.73 ",Legal Aid Payment Higher Crime
MINISTRY OF JUSTICE,LAA,26/08/2015,Lower Crime,LEGAL AID FUND,LLM SOLICITORS (LONDON) LTD,141323975,"46,795.00 ",Legal Aid Payment Lower Crime
MINISTRY OF JUSTICE,LAA,26/08/2015,Lower Crime,LEGAL AID FUND,ALBIN & CO LTD,141323009,"46,800.00 ",Legal Aid Payment Lower Crime
MINISTRY OF JUSTICE,LAA,19/08/2015,Higher Crime,LEGAL AID FUND,FORBES SOLICITORS,141242852,"46,810.48 ",Legal Aid Payment Higher Crime
MINISTRY OF JUSTICE,LAA,18/08/2015,Civil Representation,LEGAL AID FUND,MAXWELL HODGE LTD,200000000025,"46,987.70 ",Legal Aid Payment Civil Representation
MINISTRY OF JUSTICE,LAA,26/08/2015,Lower Crime,LEGAL AID FUND,CARTWRIGHT KING SOLICITORS,141323185,"47,000.00 ",Legal Aid Payment Lower Crime
MINISTRY OF JUSTICE,LAA,05/08/2015,Civil Representation,LEGAL AID FUND,GILLIAN IRVING QC,141089305,"47,054.40 ",Legal Aid Payment Civil Representation
MINISTRY OF JUSTICE,LAA,26/08/2015,Lower Crime,LEGAL AID FUND,K LEGAL SOLICITORS,141323985,"47,159.00 ",Legal Aid Payment Lower Crime
MINISTRY OF JUSTICE,LAA,19/08/2015,Higher Crime,LEGAL AID FUND,JAMES MURRAY SOLICITORS,141207759,"47,204.53 ",Legal Aid Payment Higher Crime
MINISTRY OF JUSTICE,LAA,26/08/2015,Lower Crime,LEGAL AID FUND,MARTIN MURRAY & ASSOCIATES,141323000,"47,300.00 ",Legal Aid Payment Lower Crime
MINISTRY OF JUSTICE,LAA,17/08/2015,Civil Representation,LEGAL AID FUND,PHILIP N HAVERS QC,200000000026,"47,349.52 ",Legal Aid Payment Civil Representation
MINISTRY OF JUSTICE,LAA,26/08/2015,Higher Crime,LEGAL AID FUND,FARLEYS SOLICITORS LLP,141271991,"47,372.46 ",Legal Aid Payment Higher Crime
MINISTRY OF JUSTICE,LAA,19/08/2015,Higher Crime,LEGAL AID FUND,C W BOOTH & CO,141242356,"47,490.54 ",Legal Aid Payment Higher Crime
MINISTRY OF JUSTICE,LAA,26/08/2015,Higher Crime,LEGAL AID FUND,"SWINBURNE,SNOWBALL & JACKSON",141325055,"47,490.54 ",Legal Aid Payment Higher Crime
MINISTRY OF JUSTICE,LAA,26/08/2015,Lower Crime,LEGAL AID FUND,EBR ATTRIDGE LLP,141322632,"47,500.00 ",Legal Aid Payment Lower Crime
MINISTRY OF JUSTICE,LAA,12/08/2015,Higher Crime,LEGAL AID FUND,LEWIS POWER,141099380,"47,548.18 ",Legal Aid Payment Higher Crime
MINISTRY OF JUSTICE,LAA,05/08/2015,Civil Representation,LEGAL AID FUND,MACKINTOSH LAW,141018745,"47,621.94 ",Legal Aid Payment Civil Representation
MINISTRY OF JUSTICE,LAA,26/08/2015,Legal Help,LEGAL AID FUND,ABBOTSTONE LAW LLP,141337017,"47,806.00 ",Legal Aid Payment Legal Help
MINISTRY OF JUSTICE,LAA,26/08/2015,Higher Crime,LEGAL AID FUND,HATTEN WYATT,141272713,"47,866.18 ",Legal Aid Payment Higher Crime
MINISTRY OF JUSTICE,LAA,26/08/2015,Lower Crime,LEGAL AID FUND,MICHAEL PURDON,141323503,"48,222.00 ",Legal Aid Payment Lower Crime
MINISTRY OF JUSTICE,LAA,26/08/2015,Lower Crime,LEGAL AID FUND,BURTON COPELAND LLP,141323654,"48,291.00 ",Legal Aid Payment Lower Crime
MINISTRY OF JUSTICE,LAA,26/08/2015,Higher Crime,LEGAL AID FUND,KEANEY WHITEHEAD PARTNERSHIP,141271668,"48,350.88 ",Legal Aid Payment Higher Crime
MINISTRY OF JUSTICE,LAA,05/08/2015,Higher Crime,LEGAL AID FUND,BIRCHALL BLACKBURN SOLICITORS,141041179,"48,538.26 ",Legal Aid Payment Higher Crime
MINISTRY OF JUSTICE,LAA,26/08/2015,Lower Crime,LEGAL AID FUND,STEVENS SOLICITORS,141323097,"48,600.00 ",Legal Aid Payment Lower Crime
MINISTRY OF JUSTICE,LAA,05/08/2015,Civil Representation,LEGAL AID FUND,FIONA BRUCE & CO LLP,141017294,"48,676.29 ",Legal Aid Payment Civil Representation
MINISTRY OF JUSTICE,LAA,26/08/2015,Lower Crime,LEGAL AID FUND,THOMAS BOYD WHYTE,141323384,"48,683.00 ",Legal Aid Payment Lower Crime
MINISTRY OF JUSTICE,LAA,26/08/2015,Higher Crime,LEGAL AID FUND,NEUMANS LLP,141257627,"48,810.46 ",Legal Aid Payment Higher Crime
MINISTRY OF JUSTICE,LAA,25/08/2015,Higher Crime,LEGAL AID FUND,O'KEEFFE SOLICITORS,141054800,"48,834.85 ",Legal Aid Payment Higher Crime
MINISTRY OF JUSTICE,LAA,12/08/2015,Lower Crime,LEGAL AID FUND,HCB CLIVE SHEPHERD & CO,141169799,"49,000.00 ",Legal Aid Payment Lower Crime
MINISTRY OF JUSTICE,LAA,26/08/2015,Lower Crime,LEGAL AID FUND,JOHN ONIONS SOLICITORS,141339814,"49,000.00 ",Legal Aid Payment Lower Crime
MINISTRY OF JUSTICE,LAA,19/08/2015,Higher Crime,LEGAL AID FUND,FRISBY SOLICITORS LTD,141206567,"49,047.84 ",Legal Aid Payment Higher Crime
MINISTRY OF JUSTICE,LAA,05/08/2015,Civil Representation,LEGAL AID FUND,JEREMY P WESTON,3000000392840016,"49,065.84 ",Legal Aid Payment Civil Representation
MINISTRY OF JUSTICE,LAA,26/08/2015,Higher Crime,LEGAL AID FUND,NELSON GUEST & PARTNERS,141272058,"49,225.62 ",Legal Aid Payment Higher Crime
MINISTRY OF JUSTICE,LAA,12/08/2015,Higher Crime,LEGAL AID FUND,EDWARD HAYES LLP,141159550,"49,702.25 ",Legal Aid Payment Higher Crime
MINISTRY OF JUSTICE,LAA,05/08/2015,Civil Representation,LEGAL AID FUND,STEPHENSONS SOLICITORS LLP,141048475,"49,790.78 ",Legal Aid Payment Civil Representation
MINISTRY OF JUSTICE,LAA,26/08/2015,Lower Crime,LEGAL AID FUND,"GAMMON,PIERCY & GAIGER",141323701,"49,868.00 ",Legal Aid Payment Lower Crime
MINISTRY OF JUSTICE,LAA,05/08/2015,Civil Representation,LEGAL AID FUND,JANE CROSS QC,141048497,"49,896.00 ",Legal Aid Payment Civil Representation
MINISTRY OF JUSTICE,LAA,05/08/2015,Higher Crime,LEGAL AID FUND,PAUL M MENDELLE QC,141040676,"49,897.78 ",Legal Aid Payment Higher Crime
MINISTRY OF JUSTICE,LAA,26/08/2015,Lower Crime,LEGAL AID FUND,HENNESSY & HAMMUDI,141323011,"50,000.00 ",Legal Aid Payment Lower Crime
MINISTRY OF JUSTICE,LAA,05/08/2015,Higher Crime,LEGAL AID FUND,LANYON BOWDLER LLP,141026055,"50,069.98 ",Legal Aid Payment Higher Crime
MINISTRY OF JUSTICE,LAA,05/08/2015,Civil Representation,LEGAL AID FUND,ATKINSON & FIRTH,141005705,"50,184.00 ",Legal Aid Payment Civil Representation
MINISTRY OF JUSTICE,LAA,26/08/2015,Lower Crime,LEGAL AID FUND,OSLERS SOLICITORS,141322588,"50,200.00 ",Legal Aid Payment Lower Crime
MINISTRY OF JUSTICE,LAA,19/08/2015,Civil Representation,LEGAL AID FUND,REEDS SOLICITORS LTD,141182185,"50,577.14 ",Legal Aid Payment Civil Representation
MINISTRY OF JUSTICE,LAA,05/08/2015,Higher Crime,LEGAL AID FUND,MARK D TOMASSI,141054030,"50,603.98 ",Legal Aid Payment Higher Crime
MINISTRY OF JUSTICE,LAA,26/08/2015,Lower Crime,LEGAL AID FUND,SHEPHERD SOLICITORS LTD,141323655,"50,723.00 ",Legal Aid Payment Lower Crime
MINISTRY OF JUSTICE,LAA,05/08/2015,Higher Crime,LEGAL AID FUND,BIRCHALL BLACKBURN SOLICITORS,141011294,"51,123.18 ",Legal Aid Payment Higher Crime
MINISTRY OF JUSTICE,LAA,26/08/2015,Higher Crime,LEGAL AID FUND,BHATIA BEST LTD,141256724,"51,155.20 ",Legal Aid Payment Higher Crime
MINISTRY OF JUSTICE,LAA,12/08/2015,Higher Crime,LEGAL AID FUND,LARKEN & CO,141127522,"51,155.20 ",Legal Aid Payment Higher Crime
MINISTRY OF JUSTICE,LAA,12/08/2015,Higher Crime,LEGAL AID FUND,KALYANI KAUL QC,141099314,"51,194.90 ",Legal Aid Payment Higher Crime
MINISTRY OF JUSTICE,LAA,26/08/2015,Higher Crime,LEGAL AID FUND,ANDREW J HALL QC,141256292,"51,216.43 ",Legal Aid Payment Higher Crime
MINISTRY OF JUSTICE,LAA,19/08/2015,Civil Representation,LEGAL AID FUND,JAMES ROWLEY QC,141213741,"51,304.75 ",Legal Aid Payment Civil Representation
MINISTRY OF JUSTICE,LAA,05/08/2015,Civil Representation,LEGAL AID FUND,TYRER ROXBURGH SOLICITORS LLP,140959483,"51,493.99 ",Legal Aid Payment Civil Representation
MINISTRY OF JUSTICE,LAA,19/08/2015,Higher Crime,LEGAL AID FUND,SIMON RUSSELL-FLINT QC,141183832,"51,600.00 ",Legal Aid Payment Higher Crime
MINISTRY OF JUSTICE,LAA,05/08/2015,Higher Crime,LEGAL AID FUND,MARK R TRAFFORD,141092980,"51,600.00 ",Legal Aid Payment Higher Crime
MINISTRY OF JUSTICE,LAA,12/08/2015,Higher Crime,LEGAL AID FUND,SIMON N SMITH,141140178,"51,885.58 ",Legal Aid Payment Higher Crime
MINISTRY OF JUSTICE,LAA,26/08/2015,Lower Crime,LEGAL AID FUND,S A LAW CHAMBERS SOLICITORS,141322614,"52,200.00 ",Legal Aid Payment Lower Crime
MINISTRY OF JUSTICE,LAA,26/08/2015,Legal Help,LEGAL AID FUND,DAVID GRAY LLP,141322347,"52,229.00 ",Legal Aid Payment Legal Help
MINISTRY OF JUSTICE,LAA,05/08/2015,Civil Representation,LEGAL AID FUND,MARGARET A PINE-COFFIN,141034585,"52,272.00 ",Legal Aid Payment Civil Representation
MINISTRY OF JUSTICE,LAA,05/08/2015,Civil Representation,LEGAL AID FUND,NORRIE WAITE & SLATER,141075810,"52,316.56 ",Legal Aid Payment Civil Representation
MINISTRY OF JUSTICE,LAA,19/08/2015,Higher Crime,LEGAL AID FUND,BSB SOLICITORS,141176260,"52,318.01 ",Legal Aid Payment Higher Crime
MINISTRY OF JUSTICE,LAA,05/08/2015,Higher Crime,LEGAL AID FUND,SALHAN & CO LTD,141011039,"52,704.13 ",Legal Aid Payment Higher Crime
MINISTRY OF JUSTICE,LAA,26/08/2015,Higher Crime,LEGAL AID FUND,MESSRS WATERFORDS SOLICITORS,141256808,"52,704.13 ",Legal Aid Payment Higher Crime
MINISTRY OF JUSTICE,LAA,17/08/2015,Civil Representation,LEGAL AID FUND,FRANCES M T OLDHAM,139101253,"52,812.00 ",Legal Aid Payment Civil Representation
MINISTRY OF JUSTICE,LAA,12/08/2015,Higher Crime,LEGAL AID FUND,TYRONE G SMITH,141099052,"52,988.48 ",Legal Aid Payment Higher Crime
MINISTRY OF JUSTICE,LAA,12/08/2015,Higher Crime,LEGAL AID FUND,ROXANNE T MORRELL,141139715,"53,247.48 ",Legal Aid Payment Higher Crime
MINISTRY OF JUSTICE,LAA,26/08/2015,Lower Crime,LEGAL AID FUND,BRADY EASTWOOD PIERCE & STEWART,141323414,"53,271.00 ",Legal Aid Payment Lower Crime
MINISTRY OF JUSTICE,LAA,26/08/2015,Lower Crime,LEGAL AID FUND,HINE SOLICITORS,141323919,"53,316.00 ",Legal Aid Payment Lower Crime
MINISTRY OF JUSTICE,LAA,12/08/2015,Higher Crime,LEGAL AID FUND,TUCKERS SOLICITORS LLP,141160144,"53,318.24 ",Legal Aid Payment Higher Crime
MINISTRY OF JUSTICE,LAA,26/08/2015,Lower Crime,LEGAL AID FUND,HOWARD & BYRNE SOLICITORS,141322831,"53,600.00 ",Legal Aid Payment Lower Crime
MINISTRY OF JUSTICE,LAA,26/08/2015,Lower Crime,LEGAL AID FUND,STEVENS SOLICITORS,141323090,"53,700.00 ",Legal Aid Payment Lower Crime
MINISTRY OF JUSTICE,LAA,26/08/2015,Lower Crime,LEGAL AID FUND,SANSBURY DOUGLAS,141323152,"54,000.00 ",Legal Aid Payment Lower Crime
MINISTRY OF JUSTICE,LAA,12/08/2015,Higher Crime,LEGAL AID FUND,J D SPICER ZEB,141127633,"54,497.60 ",Legal Aid Payment Higher Crime
MINISTRY OF JUSTICE,LAA,25/08/2015,Higher Crime,LEGAL AID FUND,STEPHENSONS SOLICITORS LLP,141054064,"54,497.60 ",Legal Aid Payment Higher Crime
MINISTRY OF JUSTICE,LAA,05/08/2015,Higher Crime,LEGAL AID FUND,GARTSIDES,141012393,"54,497.60 ",Legal Aid Payment Higher Crime
MINISTRY OF JUSTICE,LAA,19/08/2015,Higher Crime,LEGAL AID FUND,NOBLE SOLICITORS,141242585,"54,497.60 ",Legal Aid Payment Higher Crime
MINISTRY OF JUSTICE,LAA,05/08/2015,Higher Crime,LEGAL AID FUND,CHIVERS SOLICITORS,141082364,"54,497.60 ",Legal Aid Payment Higher Crime
MINISTRY OF JUSTICE,LAA,26/08/2015,Higher Crime,LEGAL AID FUND,MCCORMACKS LAW,141271396,"54,497.60 ",Legal Aid Payment Higher Crime
MINISTRY OF JUSTICE,LAA,19/08/2015,Higher Crime,LEGAL AID FUND,NOBLE SOLICITORS,141207983,"54,497.60 ",Legal Aid Payment Higher Crime
MINISTRY OF JUSTICE,LAA,26/08/2015,Lower Crime,LEGAL AID FUND,NELSON GUEST & PARTNERS,141322662,"54,600.00 ",Legal Aid Payment Lower Crime
MINISTRY OF JUSTICE,LAA,05/08/2015,Civil Representation,LEGAL AID FUND,ALISTAIR W O MACDONALD QC,141047900,"54,756.00 ",Legal Aid Payment Civil Representation
MINISTRY OF JUSTICE,LAA,19/08/2015,Higher Crime,LEGAL AID FUND,RUSSELL & RUSSELL SOLICITORS,141242112,"54,798.91 ",Legal Aid Payment Higher Crime
MINISTRY OF JUSTICE,LAA,19/08/2015,Civil Representation,LEGAL AID FUND,NICHOLAS A J GOODWIN,141182436,"54,885.60 ",Legal Aid Payment Civil Representation
MINISTRY OF JUSTICE,LAA,26/08/2015,Lower Crime,LEGAL AID FUND,GALBRAITH BRANLEY SOLICITORS,141323391,"54,887.00 ",Legal Aid Payment Lower Crime
MINISTRY OF JUSTICE,LAA,26/08/2015,Lower Crime,LEGAL AID FUND,STERNBERG REED SOLICITORS,141322686,"55,000.00 ",Legal Aid Payment Lower Crime
MINISTRY OF JUSTICE,LAA,26/08/2015,Lower Crime,LEGAL AID FUND,WILSON DEVONALD GRIFFITHS JOHN,141322495,"55,000.00 ",Legal Aid Payment Lower Crime
MINISTRY OF JUSTICE,LAA,05/08/2015,Higher Crime,LEGAL AID FUND,TAYLOR GOODCHILD LTD,141041440,"55,166.48 ",Legal Aid Payment Higher Crime
MINISTRY OF JUSTICE,LAA,05/08/2015,Civil Representation,LEGAL AID FUND,PEARSONS,140960067,"55,177.20 ",Legal Aid Payment Civil Representation
MINISTRY OF JUSTICE,LAA,26/08/2015,Lower Crime,LEGAL AID FUND,HENRY'S SOLICITORS LTD,141322940,"55,300.00 ",Legal Aid Payment Lower Crime
MINISTRY OF JUSTICE,LAA,12/08/2015,Higher Crime,LEGAL AID FUND,JAMES M SUTHERLAND,141114097,"55,303.18 ",Legal Aid Payment Higher Crime
MINISTRY OF JUSTICE,LAA,12/08/2015,Civil Representation,LEGAL AID FUND,TINA G COOK QC,141130957,"55,393.44 ",Legal Aid Payment Civil Representation
MINISTRY OF JUSTICE,LAA,05/08/2015,Higher Crime,LEGAL AID FUND,PATTICHI HILL & CROQUES LTD,141042097,"55,476.66 ",Legal Aid Payment Higher Crime
MINISTRY OF JUSTICE,LAA,25/08/2015,Higher Crime,LEGAL AID FUND,DAVID LACIDE & CO,141054129,"55,729.02 ",Legal Aid Payment Higher Crime
MINISTRY OF JUSTICE,LAA,26/08/2015,Lower Crime,LEGAL AID FUND,REEVES  & CO SOLICITORS,141323670,"55,949.00 ",Legal Aid Payment Lower Crime
MINISTRY OF JUSTICE,LAA,26/08/2015,Lower Crime,LEGAL AID FUND,BELMORES SOLICITORS LTD,141322582,"56,000.00 ",Legal Aid Payment Lower Crime
MINISTRY OF JUSTICE,LAA,26/08/2015,Higher Crime,LEGAL AID FUND,J D SPICER ZEB,141256178,"56,048.30 ",Legal Aid Payment Higher Crime
MINISTRY OF JUSTICE,LAA,05/08/2015,Civil Representation,LEGAL AID FUND,DUTTON GREGORY LLP,140242154,"56,136.10 ",Legal Aid Payment Civil Representation
MINISTRY OF JUSTICE,LAA,19/08/2015,Higher Crime,LEGAL AID FUND,PHILIP G HACKETT QC,141198877,"56,393.28 ",Legal Aid Payment Higher Crime
MINISTRY OF JUSTICE,LAA,26/08/2015,Lower Crime,LEGAL AID FUND,SJ LAW SOLICITORS,141323393,"56,565.00 ",Legal Aid Payment Lower Crime
MINISTRY OF JUSTICE,LAA,26/08/2015,Legal Help,LEGAL AID FUND,IMMIGRATION ADVICE SERVICE,141335041,"56,590.00 ",Legal Aid Payment Legal Help
MINISTRY OF JUSTICE,LAA,26/08/2015,Lower Crime,LEGAL AID FUND,BLACKFORDS LLP,141323371,"56,736.00 ",Legal Aid Payment Lower Crime
MINISTRY OF JUSTICE,LAA,26/08/2015,Higher Crime,LEGAL AID FUND,MOHAMMED & CO,141271542,"56,903.87 ",Legal Aid Payment Higher Crime
MINISTRY OF JUSTICE,LAA,05/08/2015,Higher Crime,LEGAL AID FUND,SHAFI SOLICITORS LLP,141026976,"56,903.87 ",Legal Aid Payment Higher Crime
MINISTRY OF JUSTICE,LAA,05/08/2015,Higher Crime,LEGAL AID FUND,COBLEYS LLP,141053934,"56,903.87 ",Legal Aid Payment Higher Crime
MINISTRY OF JUSTICE,LAA,26/08/2015,Lower Crime,LEGAL AID FUND,STEVENS SOLICITORS,141323091,"57,000.00 ",Legal Aid Payment Lower Crime
MINISTRY OF JUSTICE,LAA,26/08/2015,Higher Crime,LEGAL AID FUND,JONATHAN WOODCOCK,141271609,"57,011.98 ",Legal Aid Payment Higher Crime
MINISTRY OF JUSTICE,LAA,26/08/2015,Higher Crime,LEGAL AID FUND,TUCKERS SOLICITORS LLP,141325976,"57,098.60 ",Legal Aid Payment Higher Crime
MINISTRY OF JUSTICE,LAA,26/08/2015,Legal Help,LEGAL AID FUND,RMNJ SOLICITORS,141322211,"57,169.00 ",Legal Aid Payment Legal Help
MINISTRY OF JUSTICE,LAA,26/08/2015,Lower Crime,LEGAL AID FUND,KAIM TODNER SOLICITORS LIMITED,141323367,"57,265.00 ",Legal Aid Payment Lower Crime
MINISTRY OF JUSTICE,LAA,25/08/2015,Higher Crime,LEGAL AID FUND,JOSEPH HILL & CO,141054066,"57,356.25 ",Legal Aid Payment Higher Crime
MINISTRY OF JUSTICE,LAA,26/08/2015,Lower Crime,LEGAL AID FUND,MCGANNS LAW LTD,141323284,"57,441.00 ",Legal Aid Payment Lower Crime
MINISTRY OF JUSTICE,LAA,05/08/2015,Higher Crime,LEGAL AID FUND,JERMAN SAMUELS & PEARSON LLP,141011037,"57,712.69 ",Legal Aid Payment Higher Crime
MINISTRY OF JUSTICE,LAA,26/08/2015,Legal Help,LEGAL AID FUND,QS JACKSON CANTER LTD,141336375,"57,941.00 ",Legal Aid Payment Legal Help
MINISTRY OF JUSTICE,LAA,26/08/2015,Lower Crime,LEGAL AID FUND,IRVINE THANVI NATAS SOLICITORS,141322622,"58,000.00 ",Legal Aid Payment Lower Crime
MINISTRY OF JUSTICE,LAA,19/08/2015,Higher Crime,LEGAL AID FUND,UK LAW,141193439,"58,813.21 ",Legal Aid Payment Higher Crime
MINISTRY OF JUSTICE,LAA,26/08/2015,Higher Crime,LEGAL AID FUND,BIRDS SOLICITORS LTD,141271546,"58,888.15 ",Legal Aid Payment Higher Crime
MINISTRY OF JUSTICE,LAA,05/08/2015,Higher Crime,LEGAL AID FUND,KELLOCKS,141053926,"59,015.60 ",Legal Aid Payment Higher Crime
MINISTRY OF JUSTICE,LAA,26/08/2015,Higher Crime,LEGAL AID FUND,BIRCHALL BLACKBURN SOLICITORS,141272226,"59,035.81 ",Legal Aid Payment Higher Crime
MINISTRY OF JUSTICE,LAA,12/08/2015,Higher Crime,LEGAL AID FUND,CHRISTOPHER J SUTTON-MATTOCKS,141126855,"59,147.98 ",Legal Aid Payment Higher Crime
MINISTRY OF JUSTICE,LAA,26/08/2015,Legal Help,LEGAL AID FUND,PETER EDWARDS LAW LTD,141321753,"59,200.00 ",Legal Aid Payment Legal Help
MINISTRY OF JUSTICE,LAA,26/08/2015,Legal Help,LEGAL AID FUND,FADIGA & CO LTD,141322240,"59,534.00 ",Legal Aid Payment Legal Help
MINISTRY OF JUSTICE,LAA,26/08/2015,Higher Crime,LEGAL AID FUND,DAVID PHILLIPS & PARTNERS,141271739,"59,618.75 ",Legal Aid Payment Higher Crime
MINISTRY OF JUSTICE,LAA,26/08/2015,Lower Crime,LEGAL AID FUND,HOWELLS LLP,141322812,"60,000.00 ",Legal Aid Payment Lower Crime
MINISTRY OF JUSTICE,LAA,26/08/2015,Lower Crime,LEGAL AID FUND,WESSEX SOLICITORS CHAMBERS,141323148,"60,000.00 ",Legal Aid Payment Lower Crime
MINISTRY OF JUSTICE,LAA,26/08/2015,Lower Crime,LEGAL AID FUND,LHD SOLICITORS LTD,141322877,"60,000.00 ",Legal Aid Payment Lower Crime
MINISTRY OF JUSTICE,LAA,19/08/2015,Higher Crime,LEGAL AID FUND,DAVIES & CO ,141193661,"60,061.74 ",Legal Aid Payment Higher Crime
MINISTRY OF JUSTICE,LAA,19/08/2015,Higher Crime,LEGAL AID FUND,BSB SOLICITORS,141177909,"60,137.94 ",Legal Aid Payment Higher Crime
MINISTRY OF JUSTICE,LAA,26/08/2015,Lower Crime,LEGAL AID FUND,USMANI KING LTD,141323315,"60,288.00 ",Legal Aid Payment Lower Crime
MINISTRY OF JUSTICE,LAA,12/08/2015,Higher Crime,LEGAL AID FUND,IAIN C MORLEY QC,141126370,"60,621.08 ",Legal Aid Payment Higher Crime
MINISTRY OF JUSTICE,LAA,26/08/2015,Higher Crime,LEGAL AID FUND,STOKOE PARTNERSHIP,141257730,"60,646.44 ",Legal Aid Payment Higher Crime
MINISTRY OF JUSTICE,LAA,26/08/2015,Lower Crime,LEGAL AID FUND,REEDS SOLICITORS LTD,141323721,"60,879.00 ",Legal Aid Payment Lower Crime
MINISTRY OF JUSTICE,LAA,26/08/2015,Higher Crime,LEGAL AID FUND,RILEY HAYES & CO,141325313,"61,177.90 ",Legal Aid Payment Higher Crime
MINISTRY OF JUSTICE,LAA,26/08/2015,Lower Crime,LEGAL AID FUND,CROWE HUMBLE WESENCRAFT,141322787,"61,700.00 ",Legal Aid Payment Lower Crime
MINISTRY OF JUSTICE,LAA,26/08/2015,Legal Help,LEGAL AID FUND,LAWANA & CO,141321798,"61,800.00 ",Legal Aid Payment Legal Help
MINISTRY OF JUSTICE,LAA,19/08/2015,Higher Crime,LEGAL AID FUND,SHAW GRAHAM KERSH,141200689,"61,821.53 ",Legal Aid Payment Higher Crime
MINISTRY OF JUSTICE,LAA,26/08/2015,Higher Crime,LEGAL AID FUND,QUALITYSOLICITORS KNIGHT POLSON,141326508,"62,059.85 ",Legal Aid Payment Higher Crime
MINISTRY OF JUSTICE,LAA,19/08/2015,Higher Crime,LEGAL AID FUND,CARTER MOORE SOLICITORS LTD,141246939,"63,577.53 ",Legal Aid Payment Higher Crime
MINISTRY OF JUSTICE,LAA,05/08/2015,Civil Representation,LEGAL AID FUND,PAMELA SCRIVEN QC,141003126,"63,792.00 ",Legal Aid Payment Civil Representation
MINISTRY OF JUSTICE,LAA,19/08/2015,Higher Crime,LEGAL AID FUND,IMRAN KHAN & PARTNERS,141220906,"63,897.00 ",Legal Aid Payment Higher Crime
MINISTRY OF JUSTICE,LAA,26/08/2015,Lower Crime,LEGAL AID FUND,THE JOHNSON PARTNERSHIP,141322537,"64,000.00 ",Legal Aid Payment Lower Crime
MINISTRY OF JUSTICE,LAA,26/08/2015,Legal Help,LEGAL AID FUND,SWITALSKI'S LTD,141322183,"64,182.00 ",Legal Aid Payment Legal Help
MINISTRY OF JUSTICE,LAA,05/08/2015,Civil Representation,LEGAL AID FUND,GILLIAN IRVING QC,141002385,"64,864.80 ",Legal Aid Payment Civil Representation
MINISTRY OF JUSTICE,LAA,19/08/2015,Higher Crime,LEGAL AID FUND,KTP SOLICITORS,141242234,"65,397.12 ",Legal Aid Payment Higher Crime
MINISTRY OF JUSTICE,LAA,26/08/2015,Lower Crime,LEGAL AID FUND,FMW LAW LTD,141322604,"65,400.00 ",Legal Aid Payment Lower Crime
MINISTRY OF JUSTICE,LAA,26/08/2015,Lower Crime,LEGAL AID FUND,CARTWRIGHT KING SOLICITORS,141323291,"65,673.00 ",Legal Aid Payment Lower Crime
MINISTRY OF JUSTICE,LAA,12/08/2015,Higher Crime,LEGAL AID FUND,EDWARDS VAZIRANEY,141112872,"65,915.09 ",Legal Aid Payment Higher Crime
MINISTRY OF JUSTICE,LAA,12/08/2015,Higher Crime,LEGAL AID FUND,STUART MILLER SOLICITORS LTD,141159633,"66,127.37 ",Legal Aid Payment Higher Crime
MINISTRY OF JUSTICE,LAA,26/08/2015,Lower Crime,LEGAL AID FUND,OLIVER D'SA SOLICITORS,141323269,"66,380.00 ",Legal Aid Payment Lower Crime
MINISTRY OF JUSTICE,LAA,26/08/2015,Lower Crime,LEGAL AID FUND,VHS FLETCHERS,141322538,"66,500.00 ",Legal Aid Payment Lower Crime
MINISTRY OF JUSTICE,LAA,26/08/2015,Lower Crime,LEGAL AID FUND,JSP LAW LTD,141323962,"66,976.00 ",Legal Aid Payment Lower Crime
MINISTRY OF JUSTICE,LAA,26/08/2015,Lower Crime,LEGAL AID FUND,DUNCAN LEWIS,141322684,"67,100.00 ",Legal Aid Payment Lower Crime
MINISTRY OF JUSTICE,LAA,26/08/2015,Lower Crime,LEGAL AID FUND,J D SOLICITORS,141323811,"68,062.00 ",Legal Aid Payment Lower Crime
MINISTRY OF JUSTICE,LAA,26/08/2015,Higher Crime,LEGAL AID FUND,HEDLEY SOLICITORS,141271672,"68,065.99 ",Legal Aid Payment Higher Crime
MINISTRY OF JUSTICE,LAA,05/08/2015,Higher Crime,LEGAL AID FUND,MSB LAW LLP,141026693,"68,703.52 ",Legal Aid Payment Higher Crime
MINISTRY OF JUSTICE,LAA,26/08/2015,Higher Crime,LEGAL AID FUND,ANDREW A RADCLIFFE QC,141257335,"69,833.98 ",Legal Aid Payment Higher Crime
MINISTRY OF JUSTICE,LAA,26/08/2015,Lower Crime,LEGAL AID FUND,WELLS BURCOMBE LLP,141323928,"70,326.00 ",Legal Aid Payment Lower Crime
MINISTRY OF JUSTICE,LAA,05/08/2015,Civil Representation,LEGAL AID FUND,THOMSON SNELL & PASSMORE,141033812,"70,351.02 ",Legal Aid Payment Civil Representation
MINISTRY OF JUSTICE,LAA,26/08/2015,Higher Crime,LEGAL AID FUND,JOHN R JONES QC,141256484,"70,786.15 ",Legal Aid Payment Higher Crime
MINISTRY OF JUSTICE,LAA,26/08/2015,Higher Crime,LEGAL AID FUND,CARTER MOORE SOLICITORS LTD,141271532,"71,115.35 ",Legal Aid Payment Higher Crime
MINISTRY OF JUSTICE,LAA,26/08/2015,Legal Help,LEGAL AID FUND,BISON SOLICITORS LTD,141337005,"71,120.00 ",Legal Aid Payment Legal Help
MINISTRY OF JUSTICE,LAA,26/08/2015,Higher Crime,LEGAL AID FUND,GRACELAND SOLICITORS,141271733,"71,545.90 ",Legal Aid Payment Higher Crime
MINISTRY OF JUSTICE,LAA,26/08/2015,Higher Crime,LEGAL AID FUND,STUART MILLER SOLICITORS LTD,141271876,"71,545.90 ",Legal Aid Payment Higher Crime
MINISTRY OF JUSTICE,LAA,26/08/2015,Higher Crime,LEGAL AID FUND,AMOSU ROBINSHAW,141271550,"71,545.90 ",Legal Aid Payment Higher Crime
MINISTRY OF JUSTICE,LAA,26/08/2015,Lower Crime,LEGAL AID FUND,LANSBURY WORTHINGTON,141322605,"71,700.00 ",Legal Aid Payment Lower Crime
MINISTRY OF JUSTICE,LAA,26/08/2015,Higher Crime,LEGAL AID FUND,FARADAYS SOLICITORS LTD,141333671,"71,803.29 ",Legal Aid Payment Higher Crime
MINISTRY OF JUSTICE,LAA,12/08/2015,Civil Representation,LEGAL AID FUND,CHARLES N GEEKIE QC,139716962,"72,273.00 ",Legal Aid Payment Civil Representation
MINISTRY OF JUSTICE,LAA,05/08/2015,Higher Crime,LEGAL AID FUND,DAVID PHILLIPS & PARTNERS,141053947,"72,365.51 ",Legal Aid Payment Higher Crime
MINISTRY OF JUSTICE,LAA,19/08/2015,Higher Crime,LEGAL AID FUND,KINGSLEY NAPLEY LLP,141233518,"72,436.30 ",Legal Aid Payment Higher Crime
MINISTRY OF JUSTICE,LAA,05/08/2015,Higher Crime,LEGAL AID FUND,KANGS SOLICITORS,141081106,"73,203.30 ",Legal Aid Payment Higher Crime
MINISTRY OF JUSTICE,LAA,26/08/2015,Civil Representation,LEGAL AID FUND,HORNBY & LEVY,141262065,"73,754.14 ",Legal Aid Payment Civil Representation
MINISTRY OF JUSTICE,LAA,05/08/2015,Civil Representation,LEGAL AID FUND,JOHN A PITT VATER,141075867,"74,844.00 ",Legal Aid Payment Civil Representation
MINISTRY OF JUSTICE,LAA,05/08/2015,Civil Representation,LEGAL AID FUND,FRANCES J JUDD,141034598,"74,844.00 ",Legal Aid Payment Civil Representation
MINISTRY OF JUSTICE,LAA,26/08/2015,Legal Help,LEGAL AID FUND,WILSON SOLICITORS LLP,141321783,"75,000.00 ",Legal Aid Payment Legal Help
MINISTRY OF JUSTICE,LAA,26/08/2015,Legal Help,LEGAL AID FUND,BURKE NIAZI  LTD,141321618,"75,000.00 ",Legal Aid Payment Legal Help
MINISTRY OF JUSTICE,LAA,26/08/2015,Higher Crime,LEGAL AID FUND,HARRIS SOLICITORS,141271912,"75,013.86 ",Legal Aid Payment Higher Crime
MINISTRY OF JUSTICE,LAA,26/08/2015,Lower Crime,LEGAL AID FUND,HINE SOLICITORS,141323921,"75,279.00 ",Legal Aid Payment Lower Crime
MINISTRY OF JUSTICE,LAA,12/08/2015,Higher Crime,LEGAL AID FUND,JOHN MCGUINNESS QC,141104962,"75,600.00 ",Legal Aid Payment Higher Crime
MINISTRY OF JUSTICE,LAA,25/08/2015,Higher Crime,LEGAL AID FUND,L P EVANS SOLICITORS,141054058,"75,760.50 ",Legal Aid Payment Higher Crime
MINISTRY OF JUSTICE,LAA,26/08/2015,Lower Crime,LEGAL AID FUND,LAWTONS,141323163,"76,200.00 ",Legal Aid Payment Lower Crime
MINISTRY OF JUSTICE,LAA,12/08/2015,Higher Crime,LEGAL AID FUND,FMW LAW LTD,141127166,"76,868.79 ",Legal Aid Payment Higher Crime
MINISTRY OF JUSTICE,LAA,26/08/2015,Higher Crime,LEGAL AID FUND,COBLEYS LLP,141300670,"77,172.57 ",Legal Aid Payment Higher Crime
MINISTRY OF JUSTICE,LAA,26/08/2015,Lower Crime,LEGAL AID FUND,KIRWANS,141323462,"77,241.00 ",Legal Aid Payment Lower Crime
MINISTRY OF JUSTICE,LAA,26/08/2015,Lower Crime,LEGAL AID FUND,MARTIN MURRAY & ASSOCIATES,141322654,"77,800.00 ",Legal Aid Payment Lower Crime
MINISTRY OF JUSTICE,LAA,26/08/2015,Lower Crime,LEGAL AID FUND,BIRDS SOLICITORS LTD,141322640,"78,400.00 ",Legal Aid Payment Lower Crime
MINISTRY OF JUSTICE,LAA,19/08/2015,Higher Crime,LEGAL AID FUND,STEPHEN LICKRISH & ASSOCIATES LTD,141207222,"78,406.47 ",Legal Aid Payment Higher Crime
MINISTRY OF JUSTICE,LAA,12/08/2015,Higher Crime,LEGAL AID FUND,JOHN R MCDERMOTT QC,141126176,"78,707.87 ",Legal Aid Payment Higher Crime
MINISTRY OF JUSTICE,LAA,26/08/2015,Legal Help,LEGAL AID FUND,CARTWRIGHT KING SOLICITORS,141322376,"78,907.00 ",Legal Aid Payment Legal Help
MINISTRY OF JUSTICE,LAA,12/08/2015,Higher Crime,LEGAL AID FUND,LLOYDS PR SOLICITORS,141159602,"79,369.09 ",Legal Aid Payment Higher Crime
MINISTRY OF JUSTICE,LAA,12/08/2015,Higher Crime,LEGAL AID FUND,FARADAYS SOLICITORS LTD,141099473,"79,369.09 ",Legal Aid Payment Higher Crime
MINISTRY OF JUSTICE,LAA,12/08/2015,Higher Crime,LEGAL AID FUND,CRIMINAL DEFENCE SOLICITORS,141114108,"79,369.09 ",Legal Aid Payment Higher Crime
MINISTRY OF JUSTICE,LAA,19/08/2015,Higher Crime,LEGAL AID FUND,GHP LEGAL,141192293,"79,818.08 ",Legal Aid Payment Higher Crime
MINISTRY OF JUSTICE,LAA,26/08/2015,Lower Crime,LEGAL AID FUND,ABV SOLICITORS,141322660,"80,800.00 ",Legal Aid Payment Lower Crime
MINISTRY OF JUSTICE,LAA,26/08/2015,Lower Crime,LEGAL AID FUND,TUCKERS SOLICITORS LLP,141322931,"80,900.00 ",Legal Aid Payment Lower Crime
MINISTRY OF JUSTICE,LAA,26/08/2015,Lower Crime,LEGAL AID FUND,QS JACKSON CANTER LTD,141324042,"81,955.00 ",Legal Aid Payment Lower Crime
MINISTRY OF JUSTICE,LAA,12/08/2015,Higher Crime,LEGAL AID FUND,KHAN SOLICITORS LTD,141098422,"81,962.85 ",Legal Aid Payment Higher Crime
MINISTRY OF JUSTICE,LAA,26/08/2015,Legal Help,LEGAL AID FUND,DUNCAN LEWIS,141334019,"83,000.00 ",Legal Aid Payment Legal Help
MINISTRY OF JUSTICE,LAA,25/08/2015,Civil Representation,LEGAL AID FUND,HUGH JAMES,2000000000000001,"83,240.14 ",Legal Aid Payment Civil Representation
MINISTRY OF JUSTICE,LAA,19/08/2015,Higher Crime,LEGAL AID FUND,EBR ATTRIDGE LLP,141207819,"83,246.47 ",Legal Aid Payment Higher Crime
MINISTRY OF JUSTICE,LAA,19/08/2015,Legal Help,LEGAL AID FUND,SIMPSON MILLAR LLP,141233586,"83,909.16 ",Legal Aid Payment Legal Help
MINISTRY OF JUSTICE,LAA,26/08/2015,Lower Crime,LEGAL AID FUND,PURCELL PARKER LTD,141323104,"85,000.00 ",Legal Aid Payment Lower Crime
MINISTRY OF JUSTICE,LAA,12/08/2015,Higher Crime,LEGAL AID FUND,JASON NICHOLSON,141126720,"85,314.66 ",Legal Aid Payment Higher Crime
MINISTRY OF JUSTICE,LAA,05/08/2015,Higher Crime,LEGAL AID FUND,CYRIL MORRIS ARKWRIGHT,141053954,"85,809.55 ",Legal Aid Payment Higher Crime
MINISTRY OF JUSTICE,LAA,26/08/2015,Higher Crime,LEGAL AID FUND,ASHMANS SOLICITORS,141287737,"86,265.70 ",Legal Aid Payment Higher Crime
MINISTRY OF JUSTICE,LAA,26/08/2015,Higher Crime,LEGAL AID FUND,CARTER MOORE SOLICITORS LTD,141271528,"87,390.13 ",Legal Aid Payment Higher Crime
MINISTRY OF JUSTICE,LAA,19/08/2015,Higher Crime,LEGAL AID FUND,FMW LAW LTD,141207894,"87,478.80 ",Legal Aid Payment Higher Crime
MINISTRY OF JUSTICE,LAA,12/08/2015,Higher Crime,LEGAL AID FUND,JNP LEGAL LTD,141161702,"87,656.83 ",Legal Aid Payment Higher Crime
MINISTRY OF JUSTICE,LAA,26/08/2015,Lower Crime,LEGAL AID FUND,I B B SOLICITORS,141322656,"88,100.00 ",Legal Aid Payment Lower Crime
MINISTRY OF JUSTICE,LAA,26/08/2015,Higher Crime,LEGAL AID FUND,PATTICHI HILL & CROQUES LTD,141287738,"88,248.32 ",Legal Aid Payment Higher Crime
MINISTRY OF JUSTICE,LAA,17/08/2015,Civil Representation,LEGAL AID FUND,FRANCES M T OLDHAM,137272398,"88,646.25 ",Legal Aid Payment Civil Representation
MINISTRY OF JUSTICE,LAA,05/08/2015,Higher Crime,LEGAL AID FUND,AGI CRIMINAL SOLICITORS,141027176,"89,851.01 ",Legal Aid Payment Higher Crime
MINISTRY OF JUSTICE,LAA,05/08/2015,Higher Crime,LEGAL AID FUND,STEPHEN FIDLER & CO,141026751,"89,975.11 ",Legal Aid Payment Higher Crime
MINISTRY OF JUSTICE,LAA,26/08/2015,Higher Crime,LEGAL AID FUND,LLOYDS PR SOLICITORS,141272012,"89,975.11 ",Legal Aid Payment Higher Crime
MINISTRY OF JUSTICE,LAA,26/08/2015,Higher Crime,LEGAL AID FUND,STEPHENSONS SOLICITORS LLP,141271904,"89,975.11 ",Legal Aid Payment Higher Crime
MINISTRY OF JUSTICE,LAA,26/08/2015,Higher Crime,LEGAL AID FUND,LHS SOLICITORS LLP,141271975,"89,975.11 ",Legal Aid Payment Higher Crime
MINISTRY OF JUSTICE,LAA,26/08/2015,Higher Crime,LEGAL AID FUND,COBLEYS LLP,141325120,"89,975.11 ",Legal Aid Payment Higher Crime
MINISTRY OF JUSTICE,LAA,25/08/2015,Higher Crime,LEGAL AID FUND,MOHAMMED & CO,141054071,"89,975.11 ",Legal Aid Payment Higher Crime
MINISTRY OF JUSTICE,LAA,26/08/2015,Higher Crime,LEGAL AID FUND,MAIDMENTS LTD,141271892,"89,975.11 ",Legal Aid Payment Higher Crime
MINISTRY OF JUSTICE,LAA,26/08/2015,Higher Crime,LEGAL AID FUND,PAUL STEVENS & CO,141287508,"89,975.11 ",Legal Aid Payment Higher Crime
MINISTRY OF JUSTICE,LAA,05/08/2015,Higher Crime,LEGAL AID FUND,ALLINGTON HUGHES LTD,141053964,"89,975.11 ",Legal Aid Payment Higher Crime
MINISTRY OF JUSTICE,LAA,26/08/2015,Higher Crime,LEGAL AID FUND,MCMILLAN WILLIAMS SOLICITORS LTD,141325147,"89,975.11 ",Legal Aid Payment Higher Crime
MINISTRY OF JUSTICE,LAA,26/08/2015,Higher Crime,LEGAL AID FUND,QS JACKSON CANTER LTD,141271886,"89,975.11 ",Legal Aid Payment Higher Crime
MINISTRY OF JUSTICE,LAA,19/08/2015,Higher Crime,LEGAL AID FUND,FARNSWORTH MORGAN BAKHAT,141208002,"89,975.11 ",Legal Aid Payment Higher Crime
MINISTRY OF JUSTICE,LAA,26/08/2015,Higher Crime,LEGAL AID FUND,MAGUIRES SOLICITORS LTD,141287772,"89,975.11 ",Legal Aid Payment Higher Crime
MINISTRY OF JUSTICE,LAA,05/08/2015,Higher Crime,LEGAL AID FUND,RUSSELL & RUSSELL SOLICITORS,141053974,"89,975.11 ",Legal Aid Payment Higher Crime
MINISTRY OF JUSTICE,LAA,12/08/2015,Higher Crime,LEGAL AID FUND,MI BANKS,141159589,"89,975.11 ",Legal Aid Payment Higher Crime
MINISTRY OF JUSTICE,LAA,19/08/2015,Higher Crime,LEGAL AID FUND,LIONEL BLACKMAN SOLICITORS,141207827,"89,975.11 ",Legal Aid Payment Higher Crime
MINISTRY OF JUSTICE,LAA,12/08/2015,Higher Crime,LEGAL AID FUND,BOWDEN JONES SOLICITORS,141159585,"89,975.11 ",Legal Aid Payment Higher Crime
MINISTRY OF JUSTICE,LAA,25/08/2015,Higher Crime,LEGAL AID FUND,CARTER VINCENT LLP,141054074,"89,975.11 ",Legal Aid Payment Higher Crime
MINISTRY OF JUSTICE,LAA,25/08/2015,Higher Crime,LEGAL AID FUND,EDWARD FAIL BRADSHAW & WATERSON,141054057,"89,975.11 ",Legal Aid Payment Higher Crime
MINISTRY OF JUSTICE,LAA,19/08/2015,Higher Crime,LEGAL AID FUND,S SATHA & CO LTD,141242799,"89,975.11 ",Legal Aid Payment Higher Crime
MINISTRY OF JUSTICE,LAA,26/08/2015,Lower Crime,LEGAL AID FUND,STEPHENSONS SOLICITORS LLP,141323594,"90,147.00 ",Legal Aid Payment Lower Crime
MINISTRY OF JUSTICE,LAA,26/08/2015,Higher Crime,LEGAL AID FUND,ACT SOLICITORS LTD,141287795,"90,539.66 ",Legal Aid Payment Higher Crime
MINISTRY OF JUSTICE,LAA,05/08/2015,Higher Crime,LEGAL AID FUND,FORBES SOLICITORS,141053948,"90,955.23 ",Legal Aid Payment Higher Crime
MINISTRY OF JUSTICE,LAA,26/08/2015,Higher Crime,LEGAL AID FUND,POWELL SPENCER AND PARTNERS,141271727,"91,579.90 ",Legal Aid Payment Higher Crime
MINISTRY OF JUSTICE,LAA,26/08/2015,Lower Crime,LEGAL AID FUND,HODGE JONES & ALLEN LLP,141323418,"91,765.00 ",Legal Aid Payment Lower Crime
MINISTRY OF JUSTICE,LAA,26/08/2015,Lower Crime,LEGAL AID FUND,NOBLE SOLICITORS,141322566,"92,000.00 ",Legal Aid Payment Lower Crime
MINISTRY OF JUSTICE,LAA,05/08/2015,Higher Crime,LEGAL AID FUND,BYRNE & PARTNERS LLP,141045785,"92,302.89 ",Legal Aid Payment Higher Crime
MINISTRY OF JUSTICE,LAA,26/08/2015,Higher Crime,LEGAL AID FUND,RH LAW LLP,141301429,"93,333.34 ",Legal Aid Payment Higher Crime
MINISTRY OF JUSTICE,LAA,19/08/2015,Higher Crime,LEGAL AID FUND,STEPHENSONS SOLICITORS LLP,141207988,"93,352.00 ",Legal Aid Payment Higher Crime
MINISTRY OF JUSTICE,LAA,05/08/2015,Higher Crime,LEGAL AID FUND,RAHMAN RAVELLI SOLICTORS LTD,141020047,"93,364.20 ",Legal Aid Payment Higher Crime
MINISTRY OF JUSTICE,LAA,26/08/2015,Lower Crime,LEGAL AID FUND,LESLIE FRANKS SOLICITORS,141323422,"94,087.00 ",Legal Aid Payment Lower Crime
MINISTRY OF JUSTICE,LAA,05/08/2015,Higher Crime,LEGAL AID FUND,KYLE LEGAL PRACTICE,141053953,"95,427.35 ",Legal Aid Payment Higher Crime
MINISTRY OF JUSTICE,LAA,25/08/2015,Civil Representation,LEGAL AID FUND,UPPAL TAYLOR,797199,"97,588.98 ",Legal Aid Payment Civil Representation
MINISTRY OF JUSTICE,LAA,05/08/2015,Higher Crime,LEGAL AID FUND,FOXES SOLICITORS,141054043,"98,602.86 ",Legal Aid Payment Higher Crime
MINISTRY OF JUSTICE,LAA,12/08/2015,Higher Crime,LEGAL AID FUND,I B B SOLICITORS,141159543,"98,602.86 ",Legal Aid Payment Higher Crime
MINISTRY OF JUSTICE,LAA,05/08/2015,Higher Crime,LEGAL AID FUND,HGH CRIMINAL DEFENCE SOLICITORS,141053969,"98,602.86 ",Legal Aid Payment Higher Crime
MINISTRY OF JUSTICE,LAA,12/08/2015,Higher Crime,LEGAL AID FUND,FRAME SMITH SOLICITORS,141159553,"98,602.86 ",Legal Aid Payment Higher Crime
MINISTRY OF JUSTICE,LAA,05/08/2015,Higher Crime,LEGAL AID FUND,MORGAN ROSE LTD,141026736,"98,602.86 ",Legal Aid Payment Higher Crime
MINISTRY OF JUSTICE,LAA,12/08/2015,Higher Crime,LEGAL AID FUND,MARTIN MURRAY & ASSOCIATES,141159635,"98,602.86 ",Legal Aid Payment Higher Crime
MINISTRY OF JUSTICE,LAA,26/08/2015,Lower Crime,LEGAL AID FUND,BHATIA BEST LTD,141322515,"100,000.00 ",Legal Aid Payment Lower Crime
MINISTRY OF JUSTICE,LAA,26/08/2015,Lower Crime,LEGAL AID FUND,T V EDWARDS LLP,141322685,"100,000.00 ",Legal Aid Payment Lower Crime
MINISTRY OF JUSTICE,LAA,19/08/2015,Civil Representation,LEGAL AID FUND,JMW SOLICITORS LLP,141213655,"100,533.40 ",Legal Aid Payment Civil Representation
MINISTRY OF JUSTICE,LAA,19/08/2015,Higher Crime,LEGAL AID FUND,NEWGATE SOLICITORS,141208005,"100,794.94 ",Legal Aid Payment Higher Crime
MINISTRY OF JUSTICE,LAA,19/08/2015,Higher Crime,LEGAL AID FUND,COBLEYS LLP,141192733,"101,198.14 ",Legal Aid Payment Higher Crime
MINISTRY OF JUSTICE,LAA,12/08/2015,Civil Representation,LEGAL AID FUND,MACHINS SOLICITORS LLP,141119091,"102,854.88 ",Legal Aid Payment Civil Representation
MINISTRY OF JUSTICE,LAA,12/08/2015,Higher Crime,LEGAL AID FUND,M R LAWS,141159549,"106,511.12 ",Legal Aid Payment Higher Crime
MINISTRY OF JUSTICE,LAA,26/08/2015,Higher Crime,LEGAL AID FUND,VINCENTS SOLICITORS LTD,141271961,"107,574.07 ",Legal Aid Payment Higher Crime
MINISTRY OF JUSTICE,LAA,26/08/2015,Higher Crime,LEGAL AID FUND,MIAN & CO,141271981,"107,574.07 ",Legal Aid Payment Higher Crime
MINISTRY OF JUSTICE,LAA,12/08/2015,Higher Crime,LEGAL AID FUND,SVS SOLICITORS,141159611,"107,574.07 ",Legal Aid Payment Higher Crime
MINISTRY OF JUSTICE,LAA,12/08/2015,Higher Crime,LEGAL AID FUND,NOBLE SOLICITORS,141159592,"107,574.07 ",Legal Aid Payment Higher Crime
MINISTRY OF JUSTICE,LAA,26/08/2015,Higher Crime,LEGAL AID FUND,FYLDE LAW,141271966,"107,574.07 ",Legal Aid Payment Higher Crime
MINISTRY OF JUSTICE,LAA,26/08/2015,Higher Crime,LEGAL AID FUND,J D SPICER ZEB,141272000,"107,970.13 ",Legal Aid Payment Higher Crime
MINISTRY OF JUSTICE,LAA,26/08/2015,Higher Crime,LEGAL AID FUND,GAMLINS SOLICITORS LLP,141271953,"107,970.13 ",Legal Aid Payment Higher Crime
MINISTRY OF JUSTICE,LAA,26/08/2015,Higher Crime,LEGAL AID FUND,MARTIN & STRAIN,141287777,"107,970.13 ",Legal Aid Payment Higher Crime
MINISTRY OF JUSTICE,LAA,26/08/2015,Higher Crime,LEGAL AID FUND,DAVIES & CO ,141287715,"107,970.13 ",Legal Aid Payment Higher Crime
MINISTRY OF JUSTICE,LAA,05/08/2015,Higher Crime,LEGAL AID FUND,BOWDEN JONES SOLICITORS,141053981,"107,970.13 ",Legal Aid Payment Higher Crime
MINISTRY OF JUSTICE,LAA,12/08/2015,Higher Crime,LEGAL AID FUND,TUDUR OWEN ROBERTS GLYNNE & CO,141159614,"107,970.13 ",Legal Aid Payment Higher Crime
MINISTRY OF JUSTICE,LAA,26/08/2015,Higher Crime,LEGAL AID FUND,SAUNDERS SOLICITORS LTD,141271994,"108,400.19 ",Legal Aid Payment Higher Crime
MINISTRY OF JUSTICE,LAA,26/08/2015,Lower Crime,LEGAL AID FUND,J D SPICER ZEB,141323385,"108,731.00 ",Legal Aid Payment Lower Crime
MINISTRY OF JUSTICE,LAA,26/08/2015,Lower Crime,LEGAL AID FUND,TAYLOR STREET SOLICITORS LLP,141323086,"110,000.00 ",Legal Aid Payment Lower Crime
MINISTRY OF JUSTICE,LAA,26/08/2015,Higher Crime,LEGAL AID FUND,JACOBS SOLICITORS,141301021,"112,135.49 ",Legal Aid Payment Higher Crime
MINISTRY OF JUSTICE,LAA,12/08/2015,Higher Crime,LEGAL AID FUND,WILFORD SMITH & CO LTD,141134182,"112,429.58 ",Legal Aid Payment Higher Crime
MINISTRY OF JUSTICE,LAA,26/08/2015,Higher Crime,LEGAL AID FUND,O'REILLYS SOLICITORS LTD,141271533,"112,559.53 ",Legal Aid Payment Higher Crime
MINISTRY OF JUSTICE,LAA,12/08/2015,Higher Crime,LEGAL AID FUND,RAHMAN RAVELLI SOLICTORS LTD,141159643,"116,008.49 ",Legal Aid Payment Higher Crime
MINISTRY OF JUSTICE,LAA,26/08/2015,Higher Crime,LEGAL AID FUND,ZMS LEGAL LTD TA ZMS SOLICITORS,141271973,"116,008.49 ",Legal Aid Payment Higher Crime
MINISTRY OF JUSTICE,LAA,12/08/2015,Higher Crime,LEGAL AID FUND,YATES ARDERN,141159640,"116,008.49 ",Legal Aid Payment Higher Crime
MINISTRY OF JUSTICE,LAA,26/08/2015,Higher Crime,LEGAL AID FUND,WILFORD SMITH & CO LTD,141271898,"116,008.49 ",Legal Aid Payment Higher Crime
MINISTRY OF JUSTICE,LAA,19/08/2015,Higher Crime,LEGAL AID FUND,ASHMANS SOLICITORS,141220510,"116,008.49 ",Legal Aid Payment Higher Crime
MINISTRY OF JUSTICE,LAA,26/08/2015,Higher Crime,LEGAL AID FUND,RAHMAN RAVELLI SOLICTORS LTD,141287693,"116,008.49 ",Legal Aid Payment Higher Crime
MINISTRY OF JUSTICE,LAA,05/08/2015,Higher Crime,LEGAL AID FUND,DUNCAN LEWIS,141054048,"116,008.49 ",Legal Aid Payment Higher Crime
MINISTRY OF JUSTICE,LAA,25/08/2015,Higher Crime,LEGAL AID FUND,FORBES SOLICITORS,141054054,"116,967.65 ",Legal Aid Payment Higher Crime
MINISTRY OF JUSTICE,LAA,26/08/2015,Lower Crime,LEGAL AID FUND,STUART MILLER SOLICITORS LTD,141323419,"117,125.00 ",Legal Aid Payment Lower Crime
MINISTRY OF JUSTICE,LAA,26/08/2015,Legal Help,LEGAL AID FUND,LAWRENCE LUPIN SOLICITORS LTD,141334193,"117,611.00 ",Legal Aid Payment Legal Help
MINISTRY OF JUSTICE,LAA,26/08/2015,Higher Crime,LEGAL AID FUND,BELMORES SOLICITORS LTD,141287668,"119,065.20 ",Legal Aid Payment Higher Crime
MINISTRY OF JUSTICE,LAA,26/08/2015,Lower Crime,LEGAL AID FUND,TUCKERS SOLICITORS LLP,141322710,"120,000.00 ",Legal Aid Payment Lower Crime
MINISTRY OF JUSTICE,LAA,11/08/2015,Civil Representation,LEGAL AID FUND,PENNINGTONS LLP,200000000021,"122,833.62 ",Legal Aid Payment Civil Representation
MINISTRY OF JUSTICE,LAA,12/08/2015,Higher Crime,LEGAL AID FUND,PAUL MARTIN & CO,141160830,"127,029.30 ",Legal Aid Payment Higher Crime
MINISTRY OF JUSTICE,LAA,12/08/2015,Higher Crime,LEGAL AID FUND,ACHILLEA & CO,141160028,"129,088.88 ",Legal Aid Payment Higher Crime
MINISTRY OF JUSTICE,LAA,26/08/2015,Higher Crime,LEGAL AID FUND,CHIVERS SOLICITORS,141271965,"131,704.35 ",Legal Aid Payment Higher Crime
MINISTRY OF JUSTICE,LAA,26/08/2015,Lower Crime,LEGAL AID FUND,CARRINGTONS SOLICITORS,141323286,"174,375.00 ",Legal Aid Payment Lower Crime
MINISTRY OF JUSTICE,LAA,26/08/2015,Civil Representation,LEGAL AID FUND,COFFIN MEW,799896,"184,356.78 ",Legal Aid Payment Civil Representation
MINISTRY OF JUSTICE,LAA,26/08/2015,Lower Crime,LEGAL AID FUND,THE JOHNSON PARTNERSHIP,141322534,"210,000.00 ",Legal Aid Payment Lower Crime
MINISTRY OF JUSTICE,LAA,26/08/2015,Higher Crime,LEGAL AID FUND,NEIL A HAWES QC,141336331,"222,215.94 ",Legal Aid Payment Higher Crime
MINISTRY OF JUSTICE,LAA,05/08/2015,Higher Crime,LEGAL AID FUND,HODGSON COULTHARD & CO,141020632,"226,122.12 ",Legal Aid Payment Higher Crime
MINISTRY OF JUSTICE,LAA,11/08/2015,Civil Representation,LEGAL AID FUND,KESTER CUNNINGHAM JOHN,200000000020,"226,770.76 ",Legal Aid Payment Civil Representation
MINISTRY OF JUSTICE,LAA,26/08/2015,Legal Help,LEGAL AID FUND,DUNCAN LEWIS,141334038,"268,400.00 ",Legal Aid Payment Legal Help
MINISTRY OF JUSTICE,LAA,11/08/2015,Civil Representation,LEGAL AID FUND,ROSTRONS,200000000024,"345,855.70 ",Legal Aid Payment Civil Representation
MINISTRY OF JUSTICE,LAA,26/08/2015,Legal Help,LEGAL AID FUND,DUNCAN LEWIS,141334042,"400,000.00 ",Legal Aid Payment Legal Help
MINISTRY OF JUSTICE,LAA,12/08/2015,Civil Representation,LEGAL AID FUND,MACHINS SOLICITORS LLP,141120415,"-100,348.32 ",Legal Aid Payment
MINISTRY OF JUSTICE,LAA,05/08/2015,Higher Crime,LEGAL AID FUND,MORGAN ROSE LTD,141026704,"-98,602.86 ",Legal Aid Payment
MINISTRY OF JUSTICE,LAA,17/08/2015,Civil Representation,LEGAL AID FUND,FRANCES M T OLDHAM,137287526,"-96,962.25 ",Legal Aid Payment
MINISTRY OF JUSTICE,LAA,11/08/2015,Civil Representation,LEGAL AID FUND,ROSTRONS,132868986,"-87,333.75 ",Legal Aid Payment
MINISTRY OF JUSTICE,LAA,05/08/2015,Civil Representation,LEGAL AID FUND,JOHN A PITT VATER,141086153,"-72,349.20 ",Legal Aid Payment
MINISTRY OF JUSTICE,LAA,05/08/2015,Civil Representation,LEGAL AID FUND,GILLIAN IRVING QC,141034059,"-62,370.00 ",Legal Aid Payment
MINISTRY OF JUSTICE,LAA,05/08/2015,Civil Representation,LEGAL AID FUND,MARGARET A PINE-COFFIN,141086266,"-60,588.00 ",Legal Aid Payment
MINISTRY OF JUSTICE,LAA,05/08/2015,Civil Representation,LEGAL AID FUND,FRANCES J JUDD,141086270,"-56,862.00 ",Legal Aid Payment
MINISTRY OF JUSTICE,LAA,19/08/2015,Civil Representation,LEGAL AID FUND,HODGE JONES & ALLEN LLP,141233948,"-56,529.36 ",Legal Aid Payment
MINISTRY OF JUSTICE,LAA,12/08/2015,Civil Representation,LEGAL AID FUND,TINA G COOK QC,141151979,"-54,857.28 ",Legal Aid Payment
MINISTRY OF JUSTICE,LAA,05/08/2015,Civil Representation,LEGAL AID FUND,ALISTAIR W O MACDONALD QC,141086226,"-54,756.00 ",Legal Aid Payment
MINISTRY OF JUSTICE,LAA,17/08/2015,Civil Representation,LEGAL AID FUND,FRANCES M T OLDHAM,135865877,"-47,401.20 ",Legal Aid Payment
MINISTRY OF JUSTICE,LAA,05/08/2015,Civil Representation,LEGAL AID FUND,MACKINTOSH LAW,141018749,"-47,338.24 ",Legal Aid Payment
MINISTRY OF JUSTICE,LAA,17/08/2015,Civil Representation,LEGAL AID FUND,FRANCES M T OLDHAM,136440609,"-47,088.00 ",Legal Aid Payment
MINISTRY OF JUSTICE,LAA,05/08/2015,Civil Representation,LEGAL AID FUND,PAMELA SCRIVEN QC,140760247,"-45,265.88 ",Legal Aid Payment
MINISTRY OF JUSTICE,LAA,12/08/2015,Civil Representation,LEGAL AID FUND,CHARLES N GEEKIE QC,139791301,"-43,600.50 ",Legal Aid Payment
MINISTRY OF JUSTICE,LAA,11/08/2015,Civil Representation,LEGAL AID FUND,PENNINGTONS LLP,139107198,"-42,790.26 ",Legal Aid Payment
MINISTRY OF JUSTICE,LAA,19/08/2015,Civil Representation,LEGAL AID FUND,PHILCOX GRAY & CO,141144254,"-41,607.10 ",Legal Aid Payment
MINISTRY OF JUSTICE,LAA,05/08/2015,Civil Representation,LEGAL AID FUND,NORRIE WAITE & SLATER,141086155,"-39,852.00 ",Legal Aid Payment
MINISTRY OF JUSTICE,LAA,19/08/2015,Civil Representation,LEGAL AID FUND,HARINDER KAUR,141180976,"-37,183.92 ",Legal Aid Payment
MINISTRY OF JUSTICE,LAA,12/08/2015,Civil Representation,LEGAL AID FUND,PAUL M STOREY QC,141165242,"-36,676.80 ",Legal Aid Payment
MINISTRY OF JUSTICE,LAA,17/08/2015,Civil Representation,LEGAL AID FUND,FRANCES M T OLDHAM,139108516,"-36,310.68 ",Legal Aid Payment
MINISTRY OF JUSTICE,LAA,19/08/2015,Higher Crime,LEGAL AID FUND,DANNY G MOORE,141175992,"-36,208.32 ",Legal Aid Payment
MINISTRY OF JUSTICE,LAA,12/08/2015,Higher Crime,LEGAL AID FUND,CHRISTOPHER J SUTTON-MATTOCKS,141126654,"-35,734.80 ",Legal Aid Payment
MINISTRY OF JUSTICE,LAA,05/08/2015,Civil Representation,LEGAL AID FUND,FISHER MEREDITH LLP,140865258,"-34,548.41 ",Legal Aid Payment
MINISTRY OF JUSTICE,LAA,19/08/2015,Civil Representation,LEGAL AID FUND,FLG LTD,141180984,"-33,382.80 ",Legal Aid Payment
MINISTRY OF JUSTICE,LAA,19/08/2015,Civil Representation,LEGAL AID FUND,BELL LAMB & JOYNSON,141181080,"-33,093.88 ",Legal Aid Payment
MINISTRY OF JUSTICE,LAA,19/08/2015,Civil Representation,LEGAL AID FUND,JEFFREY R NORIE-MILLER,141132955,"-32,782.50 ",Legal Aid Payment
MINISTRY OF JUSTICE,LAA,19/08/2015,Civil Representation,LEGAL AID FUND,GOODWINS,139806733,"-32,320.09 ",Legal Aid Payment
MINISTRY OF JUSTICE,LAA,05/08/2015,Civil Representation,LEGAL AID FUND,JEREMY P WESTON,140948444,"-32,043.60 ",Legal Aid Payment
MINISTRY OF JUSTICE,LAA,26/08/2015,Civil Representation,LEGAL AID FUND,AMANDA C A MILLER,141200025,"-31,164.37 ",Legal Aid Payment
MINISTRY OF JUSTICE,LAA,12/08/2015,Civil Representation,LEGAL AID FUND,MARK CHALONER,141151978,"-31,006.66 ",Legal Aid Payment
MINISTRY OF JUSTICE,LAA,12/08/2015,Civil Representation,LEGAL AID FUND,BIRCHALL BLACKBURN SOLICITORS,141167605,"-30,996.84 ",Legal Aid Payment
MINISTRY OF JUSTICE,LAA,19/08/2015,Civil Representation,LEGAL AID FUND,TIMOTHY H SPAIN,141236933,"-30,385.76 ",Legal Aid Payment
MINISTRY OF JUSTICE,LAA,26/08/2015,Civil Representation,LEGAL AID FUND,AMANDA C A MILLER,141201207,"-29,987.17 ",Legal Aid Payment
MINISTRY OF JUSTICE,LAA,17/08/2015,Civil Representation,LEGAL AID FUND,FRANCES M T OLDHAM,135548404,"-29,937.60 ",Legal Aid Payment
MINISTRY OF JUSTICE,LAA,19/08/2015,Civil Representation,LEGAL AID FUND,JMW SOLICITORS LLP,141233456,"-29,830.28 ",Legal Aid Payment
MINISTRY OF JUSTICE,LAA,05/08/2015,Civil Representation,LEGAL AID FUND,DENBY & CO SOLICITOR LTD,141034060,"-29,676.02 ",Legal Aid Payment
MINISTRY OF JUSTICE,LAA,05/08/2015,Higher Crime,LEGAL AID FUND,RG LEGAL (ASHTON UNDER LYNE) LTD,141010960,"-29,119.95 ",Legal Aid Payment
MINISTRY OF JUSTICE,LAA,11/08/2015,Civil Representation,LEGAL AID FUND,PENNINGTONS LLP,138936264,"-28,879.87 ",Legal Aid Payment
MINISTRY OF JUSTICE,LAA,17/08/2015,Civil Representation,LEGAL AID FUND,PHILIP N HAVERS QC,129468191,"-28,017.66 ",Legal Aid Payment
MINISTRY OF JUSTICE,LAA,19/08/2015,Civil Representation,LEGAL AID FUND,T V EDWARDS LLP,141200138,"-28,015.74 ",Legal Aid Payment
MINISTRY OF JUSTICE,LAA,05/08/2015,Civil Representation,LEGAL AID FUND,CAROLINE ELFORD,137909502,"-28,014.74 ",Legal Aid Payment
MINISTRY OF JUSTICE,LAA,26/08/2015,Civil Representation,LEGAL AID FUND,SIMON ROWBOTHAM,141260805,"-27,648.00 ",Legal Aid Payment
MINISTRY OF JUSTICE,LAA,19/08/2015,Civil Representation,LEGAL AID FUND,MICHAEL J KENNEDY,140980720,"-27,345.60 ",Legal Aid Payment
MINISTRY OF JUSTICE,LAA,05/08/2015,Civil Representation,LEGAL AID FUND,TUSTAIN JONES & CO,141086232,"-27,333.00 ",Legal Aid Payment
MINISTRY OF JUSTICE,LAA,26/08/2015,Civil Representation,LEGAL AID FUND,FIONA JAMIESON,141034670,"-27,232.32 ",Legal Aid Payment
MINISTRY OF JUSTICE,LAA,19/08/2015,Civil Representation,LEGAL AID FUND,STEEL & SHAMASH,141235691,"-26,061.15 ",Legal Aid Payment
MINISTRY OF JUSTICE,LAA,26/08/2015,Civil Representation,LEGAL AID FUND,TILLY BAILEY & IRVINE LLP,141264008,"-25,566.03 ",Legal Aid Payment
Ministry of Justice,LAA,21/08/2015,610400-Debtors <1 year - Prepayments & Accrued Income,VA396-Property Costs,CAMBRIDGE CITY COUNCIL,2001993,"3,993.30 ",Rates Invoice
Ministry of Justice,LAA,21/08/2015,610400-Debtors <1 year - Prepayments & Accrued Income,VA396-Property Costs,CAMBRIDGE CITY COUNCIL,2001993,"4,979.30 ",Rates Invoice
Ministry of Justice,LAA,21/08/2015,610400-Debtors <1 year - Prepayments & Accrued Income,VA396-Property Costs,NOTTINGHAM CITY COUNCIL,2001998,"5,965.30 ",Rates Invoice
Ministry of Justice,LAA,21/08/2015,610400-Debtors <1 year - Prepayments & Accrued Income,VA396-Property Costs,BIRMINGHAM CITY COUNCIL,2001990,"8,726.10 ",Rates Invoice
Ministry of Justice,LAA,21/08/2015,610400-Debtors <1 year - Prepayments & Accrued Income,VA396-Property Costs,SOUTH TYNESIDE COUNCIL,2002000,"11,979.90 ",Rates Invoice
Ministry of Justice,LAA,21/08/2015,610400-Debtors <1 year - Prepayments & Accrued Income,VA396-Property Costs,BRISTOL CITY COUNCIL,2001992,"13,064.50 ",Rates Invoice
Ministry of Justice,LAA,21/08/2015,610400-Debtors <1 year - Prepayments & Accrued Income,VA396-Property Costs,BRIGHTON & HOVE CITY COUNCIL,2001991,"13,927.25 ",Rates Invoice
Ministry of Justice,LAA,21/08/2015,610400-Debtors <1 year - Prepayments & Accrued Income,VA396-Property Costs,LEEDS CITY COUNCIL,2001997,"14,050.50 ",Rates Invoice
